2CCN - Level 2 Cost Centre Name,,9CCN - Level 9 Cost Centre Name,9CCC - Level 9 Cost Centre Code,9AN - Level 9 Account Name,9AC - Level 9 Account Code,Transaction Description,Date Paid,Transaction Reference,Analysed Amount,2AC - Level 2 Account Codes,Supplier Name,Supplier Code
Gloucester City Council,23UE,Accelerator 1 Econ Challenge F,FP302,Other Minor Supplies Services,5590,Gloucester Means Business JUL-SEP15,01/12/2015,411080,220,NET,Gloucestershire Enterprise Ltd,18643A
Gloucester City Council,23UE,Aspire Admin Charges,LC105,Contracted Services,6970,November 2015 management fees,01/12/2015,411381,54792.25,NET,Aspire Sports & Cultural Trust,08135V
Gloucester City Council,23UE,Celebratory Lights,LT302,Christmas Lights,5024,Move Planter,01/12/2015,410998,98,NET,Ken Pink Plant Hire Ltd,56884V
Gloucester City Council,23UE,Client Revs & Bens Contract,RT240,Bailiffs Fees,5368,vat only invoice,01/12/2015,411346,0,NET,Bristow & Sutor,05450M
Gloucester City Council,23UE,Client Revs & Bens Contract,RT240,Bailiffs Fees,5368,VAT only invoice,01/12/2015,411344,0,NET,Bristow & Sutor,05450M
Gloucester City Council,23UE,REDACTED,REDACTED,REDACTED,REDACTED,REDACTED,01/12/2015,REDACTED,770,NET,REDACTED,REDACTED
Gloucester City Council,23UE,Economic Development,FP300,Other Minor Supplies Services,5590,Enterprising Women Conference sponsor,01/12/2015,411079,750,NET,Gloucestershire Enterprise Ltd,18643A
Gloucester City Council,23UE,Off Street Car Parks,PP110,Fees For Services Received,5350,OCT-DEC15 parking equipment services,01/12/2015,411239,525.96,NET,Parkeon Ltd,03238G
Gloucester City Council,23UE,Development Management,PT200,Basic Pay - Temporary Staff,2751,Temporary staff w/e 22/11/15,02/12/2015,411303,1271.25,NET,The Oyster Partnership Limited,14900T
Gloucester City Council,23UE,Grants To Voluntary Sector,FG100,Abcd Grants,7100A,24/11/15 ROOM HIRE & REFRESHMENTS,02/12/2015,411451,103.5,NET,Gavca,06129J
Gloucester City Council,23UE,Investment Property,RB500,Fire Alarm Maintenance,3053,Eastgate Market Fire Alarm work 3/11,02/12/2015,411229,851.33,NET,Adt Fire & Security Plc,54086D
Gloucester City Council,23UE,Meet & Greet,FP309,Advertising And Publicity,5702,NOV15 advert,02/12/2015,409968,75,NET,Gtw Media Ltd,14516Y
Gloucester City Council,23UE,Nms Contract,HI102,Printing,5300,CHRISTMAS 2015 BIN HANGERS,02/12/2015,411450,1654,NET,Eurolabel,10252Z
Gloucester City Council,23UE,Off Street Car Parks,PP110,Rents,3200,Rent Dec - June 2015,02/12/2015,410988,220,NET,Eddisons Commercial (Property Management) Ltd,08767Y
Gloucester City Council,23UE,Superbreak,LT104,Materials For Sale,5080,tickets sold on commission,02/12/2015,411350,299.2,NET,Superbreak Mini Holidays,00712D
Gloucester City Council,23UE,Superbreak,LT104,Sale Of Goods And Services,9230,tickets sold on commission,02/12/2015,411350,-24.92,NET,Superbreak Mini Holidays,00712D
Gloucester City Council,23UE,Tic Rovercard Sales,LT101,Materials For Sale,5080,Tickets 20/9/15-17/10/15,02/12/2015,411348,4721,NET,Stagecoach Services Ltd,56554W
Gloucester City Council,23UE,Tic Rovercard Sales,LT101,Sale Of Goods And Services,9230,Tickets 20/9/15-17/10/15,02/12/2015,411348,-393.42,NET,Stagecoach Services Ltd,56554W
Gloucester City Council,23UE,Blackfriars,LA609,Artists Fees,5355,Blackfriars concert 21/11/15,03/12/2015,411408,125,NET,Gloucestershire Police Male Voice Choir,16193F
Gloucester City Council,23UE,REDACTED,REDACTED,REDACTED,REDACTED,REDACTED,03/12/2015,REDACTED,250,NET,REDACTED,REDACTED
Gloucester City Council,23UE,Business Transformation & Tech,RT700,Fees For Services Received,5350,GCC ITHC,03/12/2015,407644,6509.26,NET,Ncc Group Security Services Ltd,15823M
Gloucester City Council,23UE,Contact Centre,RB300,Postages,5400,envelopes,03/12/2015,411398,118.68,NET,Encore Envelopes Ltd,13782H
Gloucester City Council,23UE,Contact Centre,RB300,Postages,5400,envelopes,03/12/2015,411399,141.48,NET,Encore Envelopes Ltd,13782H
Gloucester City Council,23UE,Contact Centre,RB300,Postages,5400,envelopes,03/12/2015,411400,150.25,NET,Encore Envelopes Ltd,13782H
Gloucester City Council,23UE,Contact Centre,RB300,Stationery,5302,stationery,03/12/2015,411401,101.03,NET,Lyreco Uk Ltd,11746G
Gloucester City Council,23UE,Contact Centre,RB300,Stationery,5302,stationery,03/12/2015,411402,7.38,NET,Lyreco Uk Ltd,11746G
Gloucester City Council,23UE,Countryside Unit,LP201,Major R And M - Vehicles,4010,repairs to JCB Groundhog,03/12/2015,411404,652.5,NET,D C Merrett & Co Ltd,15821E
Gloucester City Council,23UE,Countryside Unit,LP201,Routine R And M - Vehicles,4011,repairs to JCB Groundhog,03/12/2015,411404,448.97,NET,D C Merrett & Co Ltd,15821E
Gloucester City Council,23UE,Crematorium,HC200,Maint Of Grounds - General,3030,10m turf,03/12/2015,411419,40,NET,Aran Turf,56656L
Gloucester City Council,23UE,Development Management,PT200,Fees For Services Received,5350,professional fees re Peel Centre,03/12/2015,411389,8940,NET,REDACTED,REDACTED
Gloucester City Council,23UE,Development Management,PT200,Safety Equipment,5013,safety helmet,03/12/2015,411416,22.5,NET,Safpro Industrial Supply Co,39190W
Gloucester City Council,23UE,General Drainage Works,PY241,Contract Payments,0020,Topo survey Nass Lane & Tewkesbury Rd,03/12/2015,411329,595,CAP,Monument Geomatics,11065F
Gloucester City Council,23UE,REDACTED,REDACTED,REDACTED,REDACTED,REDACTED,03/12/2015,REDACTED,100,NET,REDACTED,REDACTED
Gloucester City Council,23UE,REDACTED,REDACTED,REDACTED,REDACTED,REDACTED,03/12/2015,REDACTED,98.07,NET,REDACTED,REDACTED
Gloucester City Council,23UE,REDACTED,REDACTED,REDACTED,REDACTED,REDACTED,03/12/2015,REDACTED,289.59,NET,REDACTED,REDACTED
Gloucester City Council,23UE,REDACTED,REDACTED,REDACTED,REDACTED,REDACTED,03/12/2015,REDACTED,150,NET,REDACTED,REDACTED
Gloucester City Council,23UE,Hackney Carriages,HL100,Advertising And Publicity,5702,Advertisement 13/11/15,03/12/2015,411001,657.36,NET,Local World Ltd,08556P
Gloucester City Council,23UE,Investment Property,RB500,Fire Fighting Equipment,3008,Crem service 18/11/15,03/12/2015,411422,297.43,NET,Adt Fire & Security Plc,54086D
Gloucester City Council,23UE,Northwarehouse,RB150,Fire Alarm Maintenance,3053,Engineers 29/10/2015,03/12/2015,411421,40,NET,Adt Fire & Security Plc,54086D
Gloucester City Council,23UE,Northwarehouse,RB150,Fire Alarm Maintenance,3053,North Warehouse 28/10/15,03/12/2015,411423,69.7,NET,Adt Fire & Security Plc,54086D
Gloucester City Council,23UE,Planning Policy,PT300,Basic Pay -Admin /Prof Staff,2601,temporary staff w/e 1/11/15,03/12/2015,410394,2266.42,NET,The Oyster Partnership Limited,14900T
Gloucester City Council,23UE,Planning Policy,PT300,Basic Pay -Admin /Prof Staff,2601,temporary staff w/e 15/11/15,03/12/2015,410974,2218.74,NET,The Oyster Partnership Limited,14900T
Gloucester City Council,23UE,Business Transformation & Tech,RT700,Security Testing - Govt Connec,5446,Insight service,04/12/2015,411559,1000,NET,Socitm Service Ltd,52552P
Gloucester City Council,23UE,Business Transformation & Tech,RT700,Telephones And Fax,5410,acct 814639 call charges OCT/NOV15,04/12/2015,411081,146.16,NET,Virgin Media Business,01869B
Gloucester City Council,23UE,Cemeteries,HC300,Operational Materials,5070,Ashes casket,04/12/2015,411541,240,NET,P & L Manufacturing,57600F
Gloucester City Council,23UE,Cemeteries,HC300,Operational Materials,5070,workwear,04/12/2015,411394,144,NET,Safpro Industrial Supply Co,39190W
Gloucester City Council,23UE,Cemeteries,HC300,Routine R And M - Vehicles,4011,chain oil,04/12/2015,411550,9.68,NET,Garden Machinery Gloucester,55641K
Gloucester City Council,23UE,Cemeteries,HC300,Routine R And M - Vehicles,4011,transit van light repair,04/12/2015,411549,32.8,NET,Garden Machinery Gloucester,55641K
Gloucester City Council,23UE,City Museum And Art Gallery,LM200,Operational Equipment <5000,5012,foamboard,04/12/2015,410563,165.75,NET,Conservation By Design,04282D
Gloucester City Council,23UE,Corporate Reporting /Financing,RC504,Rent Rebates - National Scheme,7300,HB REPAYMENT,04/12/2015,411510,39512.77,NET,Gloucester City Homes,05244T
Gloucester City Council,23UE,Countryside Unit,LP201,Operational Equipment <5000,5012,feedstuffs,04/12/2015,411547,22,NET,Countrywide Farmers,55687J
Gloucester City Council,23UE,Crematorium,HC200,Book Of Memory,5055,site visit to inscribe lines,04/12/2015,411522,127.1,NET,Hilton Cabinet Co Ltd,21910A
Gloucester City Council,23UE,REDACTED,REDACTED,REDACTED,REDACTED,REDACTED,04/12/2015,REDACTED,3350,CAP,REDACTED,REDACTED
Gloucester City Council,23UE,Economic Development,FP300,Business Grant,7116,Broadband voucher,04/12/2015,411552,798,NET,Horizon Telecom Ltd,16151Y
Gloucester City Council,23UE,Economic Development,FP300,Business Grant,7116,broadband voucher Oakhaven,04/12/2015,411551,399,NET,Horizon Telecom Ltd,16151Y
Gloucester City Council,23UE,Economic Development,FP300,Business Grant,7116,supply program & install 1 analogue line,04/12/2015,411554,399,NET,Lister Communications Ltd,15800N
Gloucester City Council,23UE,REDACTED,REDACTED,REDACTED,REDACTED,REDACTED,04/12/2015,REDACTED,630,NET,REDACTED,REDACTED
Gloucester City Council,23UE,Guildhall Bar And Caf�,LA210,Catering Provisions -Food,5110,food,04/12/2015,411527,148.03,NET,Woody'S Fruit & Veg,11798L
Gloucester City Council,23UE,Guildhall Bar And Caf�,LA210,Catering Provisions -Food,5110,food,04/12/2015,411528,112.95,NET,Woody'S Fruit & Veg,11798L
Gloucester City Council,23UE,Guildhall Bar And Caf�,LA210,Catering Provisions -Food,5110,food,04/12/2015,411529,95.54,NET,Woodward Foodservice,10714F
Gloucester City Council,23UE,Guildhall Bar And Caf�,LA210,Catering Provisions -Food,5110,icecream,04/12/2015,411560,63,NET,Winstones Ice Cream Ltd,56347D
Gloucester City Council,23UE,Guildhall Bar And Caf�,LA210,Catering Provisions -Food,5110,milk,04/12/2015,411563,4.6,NET,Total Produce Gloucester,12645E
Gloucester City Council,23UE,Guildhall Bar And Caf�,LA210,Catering Provisions -Food,5110,milk,04/12/2015,411564,4.6,NET,Total Produce Gloucester,12645E
Gloucester City Council,23UE,Guildhall Bar And Caf�,LA210,Catering Provisions -Food,5110,milk,04/12/2015,411565,4.6,NET,Total Produce Gloucester,12645E
Gloucester City Council,23UE,Guildhall Bar And Caf�,LA210,Catering Provisions -Food,5110,milk,04/12/2015,411566,4.6,NET,Total Produce Gloucester,12645E
Gloucester City Council,23UE,Guildhall Bar And Caf�,LA210,Catering Provisions -Liquor,5111,apple juice,04/12/2015,411539,72,NET,Bensons Fruit Juice Ltd,16170U
Gloucester City Council,23UE,Guildhall Bar And Caf�,LA210,Catering Provisions -Liquor,5111,drinks,04/12/2015,411545,1250.32,NET,Cellar Supplies Cheltenham Ltd,01563L
Gloucester City Council,23UE,REDACTED,REDACTED,REDACTED,REDACTED,REDACTED,04/12/2015,REDACTED,2645.63,NET,REDACTED,REDACTED
Gloucester City Council,23UE,REDACTED,REDACTED,REDACTED,REDACTED,REDACTED,04/12/2015,REDACTED,1418.33,NET,REDACTED,REDACTED
Gloucester City Council,23UE,REDACTED,REDACTED,REDACTED,REDACTED,REDACTED,04/12/2015,REDACTED,100,NET,REDACTED,REDACTED
Gloucester City Council,23UE,Guildhall Events,LA200,Printing,5300,Whats on booklets,04/12/2015,411557,1315,NET,Paddock Print,03014H
Gloucester City Council,23UE,Homelessness,CH120,Rent In Advance,5516,RIA & DEPOSIT,04/12/2015,411517,590.12,NET,Chalace Ltd,14046R
Gloucester City Council,23UE,REDACTED,REDACTED,REDACTED,REDACTED,REDACTED,04/12/2015,REDACTED,368.2,NET,REDACTED,REDACTED
Gloucester City Council,23UE,Homelessness Prevention,CH122,Fees For Services Received,5350,RIA & DEPOSIT,04/12/2015,411517,802,NET,Chalace Ltd,14046R
Gloucester City Council,23UE,REDACTED,REDACTED,REDACTED,REDACTED,REDACTED,04/12/2015,REDACTED,395,NET,REDACTED,REDACTED
Gloucester City Council,23UE,REDACTED,REDACTED,REDACTED,REDACTED,REDACTED,04/12/2015,REDACTED,976,NET,REDACTED,REDACTED
Gloucester City Council,23UE,REDACTED,REDACTED,REDACTED,REDACTED,REDACTED,04/12/2015,REDACTED,950,NET,REDACTED,REDACTED
Gloucester City Council,23UE,Housing Strategy & Enabling,CH110,Fees For Services Received,5350,Affordable Housing partnership,04/12/2015,411537,8100,NET,Tetlow King Planning Ltd,57245D
Gloucester City Council,23UE,Marketing Gloucester Charges,RC433,Printing,5300,Festival of Rmembrance 1/11/15,04/12/2015,411543,1235,NET,Aspire Sports & Cultural Trust,08135V
Gloucester City Council,23UE,Retail Market - Landlord,HM300,Cleaning / Domestic Equipment,5011,INITIAL WASHROOM SOLUTIONS,04/12/2015,410989,18.93,NET,Initial Washroom Solutions,06143R
Gloucester City Council,23UE,Rugby World Cup,LT450,Fees For Services Received,5350,rwc fansone stewards & security staff,04/12/2015,411506,49038,NET,R S Security And Training Ltd,16197X
Gloucester City Council,23UE,REDACTED,REDACTED,REDACTED,REDACTED,REDACTED,04/12/2015,REDACTED,1440,NET,REDACTED,REDACTED
Gloucester City Council,23UE,Shopmobility,PE200,Cleaning Materials,3600,DEC15 MEDICAL WASTE SHOPMOBILITY,04/12/2015,411448,12.14,NET,Ocs Group Uk Limited T/A Cannon,06506A
Gloucester City Council,23UE,Shopmobility,PE200,Maintenance Of Equipment,5030,Various Repairs,04/12/2015,411420,261,NET,Disabled Care & Mobility,12675V
Gloucester City Council,23UE,Tic Trading,LT110,Materials For Sale,5080,books for resale,04/12/2015,411536,80,NET,Inish Publications,10233D
Gloucester City Council,23UE,Westgate Leisure Area S106,LY155,Contract Payments,0020,Westgate Leisure Area planning app,04/12/2015,411558,1470,CAP,Peter Quinn Associates,12891L
Gloucester City Council,23UE,Westgate Leisure Area S106,LY155,Contract Payments,0020,Westgate Leisure area stage 6,04/12/2015,411524,2380,CAP,Peter Quinn Associates,12891L
Gloucester City Council,23UE,Aspire Admin Charges,LC105,Contracted Services,6970,DEC15 management fees,07/12/2015,411521,54792.25,NET,Aspire Sports & Cultural Trust,08135V
Gloucester City Council,23UE,Cemeteries,HC300,Operational Materials,5070,Mechanical Sweep,07/12/2015,410572,256,NET,Enterprise (Aol) Ltd,06695G
Gloucester City Council,23UE,Client Revs & Bens Contract,RT240,Bailiffs Fees,5368,VAT on fees collected,07/12/2015,411390,0,NET,Phoenix Commercial Collections Ltd,13435J
Gloucester City Council,23UE,Client Revs & Bens Contract,RT240,Bailiffs Fees,5368,VAT on fees collected,07/12/2015,411391,0,NET,Phoenix Commercial Collections Ltd,13435J
Gloucester City Council,23UE,Coll Fund Revenue Account,ZC100,County Council Precept,7460,precept payment December 2015,07/12/2015,411702,3893978.2,NET,Gloucestershire County Council,18650D
Gloucester City Council,23UE,Coll Fund Revenue Account,ZC100,Nndr Central Share,7474,BRR POOLING PAYMENT BRR9,07/12/2015,411705,421339,NET,Gloucestershire County Council,18650D
Gloucester City Council,23UE,Coll Fund Revenue Account,ZC100,Nndr Tariff,7473,BRR POOLING PAYMENT,07/12/2015,411706,1320307,NET,Stroud District Council,74737T
Gloucester City Council,23UE,Coll Fund Revenue Account,ZC100,Police Precept,7461,precept payment December 2015,07/12/2015,411703,741766.3,NET,"Police & Crime Commissioner, Gloucestershire",49521B
Gloucester City Council,23UE,Contact Centre,RB300,Basic Pay - Temporary Staff,2751,temporary staff w/e 29/11/15,07/12/2015,411523,720,NET,Morgan Hunt Uk Ltd,04451S
Gloucester City Council,23UE,Contact Centre,RB300,Other Minor Supplies Services,5590,NOV15 out of hours service,07/12/2015,411576,57.44,NET,Office Response,09439K
Gloucester City Council,23UE,Contaminated Land,HE301,Fees For Services Received,5350,SEP15 contaminated land work,07/12/2015,411309,3581.76,NET,Bromsgrove District Council,15037G
Gloucester City Council,23UE,Council Streetcare Team,HI101,Maint Of Grounds - General,3030,fence repair Soren Larsen Way,07/12/2015,411530,578.45,NET,Greenfields Garden Services Ltd,48130G
Gloucester City Council,23UE,Employers Pension Contribs,ZR355,Pension Contribs Incl Backf,2901,pension deficit for GCC,07/12/2015,411704,217666.66,NET,Gloucestershire County Council,10614L
Gloucester City Council,23UE,Gates Streets,GY014,Contract Payments,0020,Father Christmas Scrumpty,07/12/2015,411556,1600,CAP,Marketing Gloucester Ltd,08925E
Gloucester City Council,23UE,Investment Property,RB500,Repair/Maint Of Fixed Plant,3006,callout to leaking fan coil unit HKP,07/12/2015,410197,346.25,NET,Axiom Building Services,14908A
Gloucester City Council,23UE,Investment Property,RB500,Repair/Maint Of Fixed Plant,3006,MTC contract payment,07/12/2015,411544,8296.94,NET,Axiom Building Services,14908A
Gloucester City Council,23UE,Nms Contract,HI102,Additional Non-Tender Items,6973,purple refuse sacks,07/12/2015,411231,903,NET,Polystar Plastics Ltd,01120C
Gloucester City Council,23UE,Nms Contract,HI102,Contracted Services,6970,commodity top up NOV15,07/12/2015,411568,22277,NET,Enterprise (Aol) Ltd,06695G
Gloucester City Council,23UE,Nms Contract,HI102,Contracted Services,6970,December 2015 service fee,07/12/2015,411569,477329.01,NET,Enterprise (Aol) Ltd,06695G
Gloucester City Council,23UE,Retail Market - Landlord,HM300,Trade Refuse Collection,3630,Food Waste,07/12/2015,411392,120,NET,B & S Pointon Ltd,06253G
Gloucester City Council,23UE,Aspire Admin Charges,LC105,Fees For Services Received,5350,October 2015 Staff Contributions,08/12/2015,411410,522,NET,Aspire Sports & Cultural Trust,08135V
Gloucester City Council,23UE,Asset Management,RS300,Basic Pay - Temporary Staff,2751,NOV15 professional services,08/12/2015,411722,5981.05,NET,Ardley Associates,09369F
Gloucester City Council,23UE,Blackfriars,LA609,Contract Cleaning,3620,NOV15 BLACKFRIARS CLEANING,08/12/2015,411449,325,NET,Into Cleaning,14609P
Gloucester City Council,23UE,City Museum Catering,LM202,Catering Provisions -Food,5110,Food,08/12/2015,411691,17.7,NET,Woodward Foodservice,10714F
Gloucester City Council,23UE,City Museum Catering,LM202,Catering Provisions -Food,5110,Food,08/12/2015,411692,168.74,NET,Woodward Foodservice,10714F
Gloucester City Council,23UE,City Museum Catering,LM202,Catering Provisions -Food,5110,Fruit & Veg,08/12/2015,411690,35.49,NET,Woody'S Fruit & Veg,11798L
Gloucester City Council,23UE,City Museum Catering,LM202,Catering Provisions -Food,5110,Fruit & Veg October 2015,08/12/2015,411689,49.99,NET,Woody'S Fruit & Veg,11798L
Gloucester City Council,23UE,City Museum Catering,LM202,Catering Provisions -Food,5110,Milk,08/12/2015,411683,4.6,NET,Total Produce Gloucester,12645E
Gloucester City Council,23UE,City Museum Catering,LM202,Catering Provisions -Food,5110,Milk,08/12/2015,411684,6.9,NET,Total Produce Gloucester,12645E
Gloucester City Council,23UE,City Museum Catering,LM202,Catering Provisions -Food,5110,Milk,08/12/2015,411685,4.6,NET,Total Produce Gloucester,12645E
Gloucester City Council,23UE,City Museum Catering,LM202,Catering Provisions -Food,5110,Milk,08/12/2015,411686,6.9,NET,Total Produce Gloucester,12645E
Gloucester City Council,23UE,City Museum Catering,LM202,Catering Provisions -Food,5110,Milk,08/12/2015,411687,6.9,NET,Total Produce Gloucester,12645E
Gloucester City Council,23UE,City Museum Catering,LM202,Catering Provisions -Food,5110,Milk,08/12/2015,411688,4.6,NET,Total Produce Gloucester,12645E
Gloucester City Council,23UE,Client Revs & Bens Contract,RT240,Bailiffs Fees,5368,Fees paid direct & VAT due on invoice,08/12/2015,411718,2.2,NET,Bristow & Sutor,05450M
Gloucester City Council,23UE,Client Revs & Bens Contract,RT240,Bailiffs Fees,5368,VAT only invoice,08/12/2015,411717,0,NET,Bristow & Sutor,05450M
Gloucester City Council,23UE,Contact Centre,RB300,Postages,5400,Post 06/11 - 26/11 2015,08/12/2015,411677,1609.86,NET,Royal Mail S.Wales & South West,35830S
Gloucester City Council,23UE,Contact Centre,RB300,Printing,5300,Printing Job,08/12/2015,411655,289,NET,Alpha Colour Printers Ltd,00945B
Gloucester City Council,23UE,Contact Centre,RB300,Printing,5300,Stationery,08/12/2015,411647,62.68,NET,Lyreco Uk Ltd,11746G
Gloucester City Council,23UE,Contact Centre,RB300,Stationery,5302,Stationery,08/12/2015,411641,2.14,NET,Lyreco Uk Ltd,11746G
Gloucester City Council,23UE,Contact Centre,RB300,Stationery,5302,Stationery,08/12/2015,411642,34.38,NET,Lyreco Uk Ltd,11746G
Gloucester City Council,23UE,Contact Centre,RB300,Stationery,5302,Stationery,08/12/2015,411643,47.72,NET,Lyreco Uk Ltd,11746G
Gloucester City Council,23UE,Contact Centre,RB300,Stationery,5302,Stationery,08/12/2015,411644,52.25,NET,Lyreco Uk Ltd,11746G
Gloucester City Council,23UE,Contact Centre,RB300,Stationery,5302,Stationery,08/12/2015,411645,4.76,NET,Lyreco Uk Ltd,11746G
Gloucester City Council,23UE,Contact Centre,RB300,Stationery,5302,Stationery,08/12/2015,411646,27.11,NET,Lyreco Uk Ltd,11746G
Gloucester City Council,23UE,Corporate Reporting /Financing,RC504,Fees For Services Received,5350,Childcare vouchers,08/12/2015,411714,42,NET,Wider Plan Ltd ( Formerly Kiddivouchers),07893B
Gloucester City Council,23UE,Council Streetcare Team,HI101,General Repair/Maint Buildings,3000,Repairs,08/12/2015,411699,230,NET,Ermin Plant Hire & Services Ltd,14150V
Gloucester City Council,23UE,Council Streetcare Team,HI101,Maint Of Grounds - General,3030,Plock Court fence repairs,08/12/2015,411531,68,NET,Greenfields Garden Services Ltd,48130G
Gloucester City Council,23UE,Development Management,PT200,Basic Pay - Temporary Staff,2751,Temporary staff w/e 29/11/2015,08/12/2015,411637,1285.85,NET,The Oyster Partnership Limited,14900T
Gloucester City Council,23UE,Development Management,PT200,Fees For Services Received,5350,Ecological Advice,08/12/2015,411658,184.92,NET,Gloucestershire County Council,18650D
Gloucester City Council,23UE,Docks Complex - Castlemeads Cp,RB210,Contracted Services,6970,GC fixed overhead,08/12/2015,411574,773.48,NET,Apcoa Parking (Uk) Ltd,09954M
Gloucester City Council,23UE,Docks Complex - Castlemeads Cp,RB210,Contracted Services,6970,GC other items,08/12/2015,411575,496.17,NET,Apcoa Parking (Uk) Ltd,09954M
Gloucester City Council,23UE,Docks Complex - Castlemeads Cp,RB210,Contracted Services,6970,GC P&D and head cams,08/12/2015,411571,2094.9,NET,Apcoa Parking (Uk) Ltd,09954M
Gloucester City Council,23UE,Docks Complex - Castlemeads Cp,RB210,Contracted Services,6970,GC vehicles,08/12/2015,411572,454.26,NET,Apcoa Parking (Uk) Ltd,09954M
Gloucester City Council,23UE,Docks Complex - Services,RB100,Cleaning Materials,3600,cleaning materials,08/12/2015,411542,263.16,NET,Acs Business Supplies Ltd,15791M
Gloucester City Council,23UE,Docks Complex - Services,RB100,Gas Fittings Serv/Repair,3052,New Gas Solenoid Valve,08/12/2015,411697,1385,NET,Mechanical Installation Heatingservices(Glos),16130G
Gloucester City Council,23UE,Economic Development,FP300,Business Grant,7116,Broadband voucher,08/12/2015,411724,1945,NET,Edge Networks (Uk) Ltd,15839J
Gloucester City Council,23UE,Economic Development,FP300,Other Minor Supplies Services,5590,Award Cups,08/12/2015,411654,387,NET,Trophy World,44734E
Gloucester City Council,23UE,Folk Museum,LM210,Cleaning Materials,3600,cleaning materials,08/12/2015,411542,182.64,NET,Acs Business Supplies Ltd,15791M
Gloucester City Council,23UE,Food Safety,HE100,Fees For Services Received,5350,Laundry,08/12/2015,411653,15,NET,Iron Maidens,02180Y
Gloucester City Council,23UE,General Drainage Works,PY241,Contract Payments,0020,River Twyver tree works St Oswalds,08/12/2015,411532,3000,CAP,Greenfields Garden Services Ltd,48130G
Gloucester City Council,23UE,Gloucester Guildhall,LA100,Cleaning Materials,3600,cleaning materials,08/12/2015,411542,113.75,NET,Acs Business Supplies Ltd,15791M
Gloucester City Council,23UE,Gloucester Guildhall,LA100,Maintenance Of Equipment,5030,insulating tape,08/12/2015,411413,26.5,NET,Directa Uk Ltd,05387T
Gloucester City Council,23UE,Gloucester Guildhall,LA100,Subscriptions,5600,Membership of gloucester city safe,08/12/2015,411662,91.25,NET,Gloucester City Safe,14709J
Gloucester City Council,23UE,Green Garden Waste,HI105,Basic Pay - Temporary Staff,2751,temporary staff,08/12/2015,411682,441.75,NET,One To One Recruitment,04752H
Gloucester City Council,23UE,Guildhall Events,LA200,Artists Fees,5355,Festival Tickets October 2015,08/12/2015,411671,239,NET,Strike A Light,16195B
Gloucester City Council,23UE,REDACTED,REDACTED,REDACTED,REDACTED,REDACTED,08/12/2015,REDACTED,1150,NET,REDACTED,REDACTED
Gloucester City Council,23UE,REDACTED,REDACTED,REDACTED,REDACTED,REDACTED,08/12/2015,REDACTED,1031.24,NET,REDACTED,REDACTED
Gloucester City Council,23UE,REDACTED,REDACTED,REDACTED,REDACTED,REDACTED,08/12/2015,REDACTED,1051.66,NET,REDACTED,REDACTED
Gloucester City Council,23UE,Guildhall Events,LA200,Fees For Services Received,5350,REDACTED,08/12/2015,411736,150,NET,Leap Audio,15059W
Gloucester City Council,23UE,Guildhall Events,LA200,Fees For Services Received,5350,REDACTED,08/12/2015,411739,150,NET,Leap Audio,15059W
Gloucester City Council,23UE,Guildhall Events,LA200,Fees For Services Received,5350,REDACTED,08/12/2015,411733,150,NET,Leap Audio,15059W
Gloucester City Council,23UE,Guildhall Events,LA200,Fees For Services Received,5350,REDACTED,08/12/2015,411734,140,NET,Leap Audio,15059W
Gloucester City Council,23UE,Guildhall Events,LA200,Fees For Services Received,5350,REDACTED,08/12/2015,411737,150,NET,Leap Audio,15059W
Gloucester City Council,23UE,Guildhall Events,LA200,Fees For Services Received,5350,REDACTED,08/12/2015,411738,140,NET,Leap Audio,15059W
Gloucester City Council,23UE,Guildhall Events,LA200,Fees For Services Received,5350,REDACTED,08/12/2015,411735,140,NET,Leap Audio,15059W
Gloucester City Council,23UE,Guildhall Events,LA200,Fees For Services Received,5350,REDACTED,08/12/2015,411740,150,NET,Leap Audio,15059W
Gloucester City Council,23UE,Guildhall Events,LA200,Fees For Services Received,5350,NOV15 newspapers,08/12/2015,411729,17.5,NET,W H Smith Ltd,40860M
Gloucester City Council,23UE,REDACTED,REDACTED,REDACTED,REDACTED,REDACTED,08/12/2015,REDACTED,290,NET,REDACTED,REDACTED
Gloucester City Council,23UE,REDACTED,REDACTED,REDACTED,REDACTED,REDACTED,08/12/2015,REDACTED,360,NET,REDACTED,REDACTED
Gloucester City Council,23UE,Guildhall Events,LA200,Hire Of Equipment,5020,hire of lighting stands,08/12/2015,411732,10,NET,Leap Audio,15059W
Gloucester City Council,23UE,Homelessness,CH120,General Repair/Maint Buildings,3000,Airflow mesh manager chair,08/12/2015,411723,104,NET,Bestbuy Office Chairs,15521W
Gloucester City Council,23UE,Homelessness,CH120,Removal And Storage Fees,5513,Storage Charges,08/12/2015,411640,99.64,NET,Advanced Removals & Storage Ltd,57142R
Gloucester City Council,23UE,Homelessness Prevention,CH122,Basic Pay - Temporary Staff,2751,Temporary staff w/e 29/11/15,08/12/2015,411725,779.59,NET,Greenacre Recruitment Ltd,15817V
Gloucester City Council,23UE,Investment Property,RB500,General Repair/Maint Buildings,3000,PPM Maintenance,08/12/2015,411698,286,NET,Airvent Systems Limited,51073T
Gloucester City Council,23UE,Nms Contract,HI102,Additional Non-Tender Items,6973,card self lock tags,08/12/2015,411719,809,NET,Eurolabel,10252Z
Gloucester City Council,23UE,Off Street Car Parks,PP110,Computer Software Maintenance,5427,MiPermit Cashless Parking Fees,08/12/2015,410583,735.25,NET,Chipside Ltd,06535T
Gloucester City Council,23UE,Off Street Car Parks,PP110,Contracted Services,6970,GC other items,08/12/2015,411575,13022.72,NET,Apcoa Parking (Uk) Ltd,09954M
Gloucester City Council,23UE,Off Street Car Parks,PP110,Contracted Services,6970,GC variable enforcement,08/12/2015,411573,3659.58,NET,Apcoa Parking (Uk) Ltd,09954M
Gloucester City Council,23UE,Organisational Health,RC160,Fees For Services Received,5350,OH & Jobscreen services,08/12/2015,411726,362.17,NET,Industrial Medical & Safety Services Ltd,10668L
Gloucester City Council,23UE,Printing,RP103,Printing,5300,Various Print Jobs,08/12/2015,411657,530,NET,Alpha Colour Printers Ltd,00945B
Gloucester City Council,23UE,Registration Of Electors,RS400,Postages,5400,acct 0870585031 NOV15,08/12/2015,411721,1313.93,NET,Royal Mail S.Wales & South West,35830S
Gloucester City Council,23UE,Registration Of Electors,RS400,Printing,5300,Nov15 IER mailings,08/12/2015,411570,630.93,NET,Alpha Response Print & Mail Ltd,03029U
Gloucester City Council,23UE,Rehousing,CH111,Fees For Services Received,5350,medical report,08/12/2015,411411,20.5,NET,Gloucester Health Access Centre,11611H
Gloucester City Council,23UE,Rehousing,CH111,Fees For Services Received,5350,medical report,08/12/2015,411730,20.5,NET,Bartongate Surgery,05680S
Gloucester City Council,23UE,Rehousing,CH111,Fees For Services Received,5350,Medical Report,08/12/2015,411639,20.5,NET,Gloucester City Health Centre,02093U
Gloucester City Council,23UE,Retail Market - Landlord,HM300,Cleaning / Domestic Equipment,5011,cleaning materials,08/12/2015,411542,217.91,NET,Acs Business Supplies Ltd,15791M
Gloucester City Council,23UE,The Arbor,HC501,Catering Provisions -Food,5110,Food,08/12/2015,411064,14.72,NET,Total Produce Gloucester,12645E
Gloucester City Council,23UE,Tic Theatre Ticket Sales,LT107,Materials For Sale,5080,ticket sales 'Spirit of Christmas 2015',08/12/2015,411700,120,NET,Muscular Dystrophy Campaign,11485M
Gloucester City Council,23UE,Tic Theatre Ticket Sales,LT107,Sale Of Goods And Services,9230,ticket sales 'Spirit of Christmas 2015',08/12/2015,411700,-5,NET,Muscular Dystrophy Campaign,11485M
Gloucester City Council,23UE,Tic Trading,LT110,Materials For Sale,5080,Various Items,08/12/2015,411652,149.6,NET,1st Take Ltd,05598B
Gloucester City Council,23UE,Tic Trading,LT110,Publications For Sale,5064,Secret Gloucester,08/12/2015,411651,44.97,NET,David Whyman Map Sales,02653Z
Gloucester City Council,23UE,Tree Planting Grant Funded,LY150,Contract Payments,0020,Tree Stakes,08/12/2015,411679,60,CAP,Mount Pleasant Trees,51352K
Gloucester City Council,23UE,Tree Planting Grant Funded,LY150,Contract Payments,0020,Various Trees,08/12/2015,411680,135,CAP,Mount Pleasant Trees,51352K
Gloucester City Council,23UE,Tree Planting Grant Funded,LY150,Contract Payments,0020,Various Trees,08/12/2015,411681,119.3,CAP,Mount Pleasant Trees,51352K
Gloucester City Council,23UE,Westgate Leisure Area S106,LY155,Contract Payments,0020,Westgate Park,08/12/2015,411425,11353.48,CAP,Rf Gardiner Limited,12299B
Gloucester City Council,23UE,Celebratory Lights,LT302,Christmas Lights,5024,Road Marker Paint,09/12/2015,411861,4.95,NET,Ermin Plant Hire & Services Ltd,14150V
Gloucester City Council,23UE,Christmas Lights,GY006,Contract Payments,0020,Crowd Barriers,09/12/2015,411863,288,CAP,Ermin Plant Hire & Services Ltd,14150V
Gloucester City Council,23UE,REDACTED,REDACTED,REDACTED,REDACTED,REDACTED,09/12/2015,REDACTED,100,NET,REDACTED,REDACTED
Gloucester City Council,23UE,City Museum And Art Gallery,LM200,Publications,5060,Copies of 'Finding Richard III',09/12/2015,411393,275,NET,Little Marilyn Productions Ltd,16196Z
Gloucester City Council,23UE,Civica Admin Charges,RT105,Postages,5400,Post 16/11 - 27/11 2015,09/12/2015,411676,1153.19,NET,Royal Mail S.Wales & South West,35830S
Gloucester City Council,23UE,Countryside Unit,LP201,Safety Equipment,5013,Gloves,09/12/2015,411846,101.52,NET,Spaldings,48759Y
Gloucester City Council,23UE,Crematorium,HC200,Cleaning Materials,3600,NOV 2015,09/12/2015,410441,17.28,NET,Minster Cleaning Services,02158R
Gloucester City Council,23UE,Crematorium,HC200,Maint Of Grounds - General,3030,standard roses,09/12/2015,411525,2250,NET,Genus Softworks Ltd,12320N
Gloucester City Council,23UE,Development Management,PT200,Advertising And Publicity,5702,Advertisement 19/11/2015,09/12/2015,411415,204.51,NET,Local World Ltd,08556P
Gloucester City Council,23UE,Development Management,PT200,Microfilming / Cd-Rom Storage,5330,Storage November 2015,09/12/2015,411848,36.74,NET,Transmedia Technology Ltd,08635T
Gloucester City Council,23UE,Disabled Facilities Grants,CY013,Disabled Facility Grants,0074,MDF5133 final fee,09/12/2015,411876,10287.85,CAP,Mears Home Improvement Ltd,00096G
Gloucester City Council,23UE,Docks Complex - Catering Servs,RB110,Catering Provisions -Food,5110,food,09/12/2015,411859,16.72,NET,Janes Pantry,24500W
Gloucester City Council,23UE,Docks Complex - Catering Servs,RB110,Catering Provisions -Food,5110,Food,09/12/2015,411798,51.05,NET,Total Produce Gloucester,12645E
Gloucester City Council,23UE,Docks Complex - Catering Servs,RB110,Catering Provisions -Food,5110,Food,09/12/2015,411799,54.66,NET,Total Produce Gloucester,12645E
Gloucester City Council,23UE,Docks Complex - Catering Servs,RB110,Catering Provisions -Food,5110,Food,09/12/2015,411800,16.68,NET,Total Produce Gloucester,12645E
Gloucester City Council,23UE,Docks Complex - Catering Servs,RB110,Catering Provisions -Food,5110,Food,09/12/2015,411801,38.84,NET,Total Produce Gloucester,12645E
Gloucester City Council,23UE,Docks Complex - Catering Servs,RB110,Catering Provisions -Food,5110,Food,09/12/2015,411802,8.64,NET,Total Produce Gloucester,12645E
Gloucester City Council,23UE,Docks Complex - Catering Servs,RB110,Catering Provisions -Food,5110,Food,09/12/2015,411803,45.32,NET,Total Produce Gloucester,12645E
Gloucester City Council,23UE,Docks Complex - Catering Servs,RB110,Catering Provisions -Food,5110,Food,09/12/2015,411804,51.14,NET,Total Produce Gloucester,12645E
Gloucester City Council,23UE,Docks Complex - Catering Servs,RB110,Catering Provisions -Food,5110,Food,09/12/2015,411805,28.94,NET,Total Produce Gloucester,12645E
Gloucester City Council,23UE,Docks Complex - Catering Servs,RB110,Catering Provisions -Food,5110,Food,09/12/2015,411806,37.13,NET,Total Produce Gloucester,12645E
Gloucester City Council,23UE,Docks Complex - Catering Servs,RB110,Catering Provisions -Food,5110,Food,09/12/2015,411807,62.5,NET,Total Produce Gloucester,12645E
Gloucester City Council,23UE,Docks Complex - Catering Servs,RB110,Catering Provisions -Food,5110,Food,09/12/2015,411808,31.28,NET,Total Produce Gloucester,12645E
Gloucester City Council,23UE,Docks Complex - Catering Servs,RB110,Catering Provisions -Food,5110,Food,09/12/2015,411810,39.52,NET,Total Produce Gloucester,12645E
Gloucester City Council,23UE,Docks Complex - Catering Servs,RB110,Catering Provisions -Food,5110,Food,09/12/2015,411811,32.54,NET,Total Produce Gloucester,12645E
Gloucester City Council,23UE,Docks Complex - Catering Servs,RB110,Catering Provisions -Food,5110,Food,09/12/2015,411812,40.12,NET,Total Produce Gloucester,12645E
Gloucester City Council,23UE,Docks Complex - Catering Servs,RB110,Catering Provisions -Food,5110,Food,09/12/2015,411813,60.14,NET,Total Produce Gloucester,12645E
Gloucester City Council,23UE,Docks Complex - Catering Servs,RB110,Catering Provisions -Food,5110,Food,09/12/2015,411814,4.32,NET,Total Produce Gloucester,12645E
Gloucester City Council,23UE,Docks Complex - Catering Servs,RB110,Catering Provisions -Food,5110,Food,09/12/2015,411815,13.9,NET,Total Produce Gloucester,12645E
Gloucester City Council,23UE,Docks Complex - Catering Servs,RB110,Catering Provisions -Food,5110,Food,09/12/2015,411816,15.85,NET,Total Produce Gloucester,12645E
Gloucester City Council,23UE,Docks Complex - Catering Servs,RB110,Catering Provisions -Food,5110,Food,09/12/2015,411817,16.68,NET,Total Produce Gloucester,12645E
Gloucester City Council,23UE,Docks Complex - Catering Servs,RB110,Catering Provisions -Food,5110,Food,09/12/2015,411818,49.74,NET,Total Produce Gloucester,12645E
Gloucester City Council,23UE,Docks Complex - Catering Servs,RB110,Catering Provisions -Food,5110,Food,09/12/2015,411819,144.22,NET,Bidvest Foodservice (3663),55585U
Gloucester City Council,23UE,Docks Complex - Catering Servs,RB110,Catering Provisions -Food,5110,Food,09/12/2015,411820,51.48,NET,Janes Pantry,24500W
Gloucester City Council,23UE,Docks Complex - Catering Servs,RB110,Catering Provisions -Food,5110,Food,09/12/2015,411821,47.52,NET,Janes Pantry,24500W
Gloucester City Council,23UE,Docks Complex - Catering Servs,RB110,Catering Provisions -Food,5110,Food,09/12/2015,411822,14.66,NET,Janes Pantry,24500W
Gloucester City Council,23UE,Docks Complex - Catering Servs,RB110,Catering Provisions -Food,5110,Food,09/12/2015,411823,13.23,NET,Janes Pantry,24500W
Gloucester City Council,23UE,Docks Complex - Catering Servs,RB110,Catering Provisions -Food,5110,Food,09/12/2015,411824,17.94,NET,Janes Pantry,24500W
Gloucester City Council,23UE,Docks Complex - Catering Servs,RB110,Catering Provisions -Food,5110,Food,09/12/2015,411825,14.66,NET,Janes Pantry,24500W
Gloucester City Council,23UE,Docks Complex - Catering Servs,RB110,Catering Provisions -Food,5110,Food,09/12/2015,411826,5.32,NET,Janes Pantry,24500W
Gloucester City Council,23UE,Docks Complex - Catering Servs,RB110,Catering Provisions -Food,5110,Food,09/12/2015,411827,9.19,NET,Janes Pantry,24500W
Gloucester City Council,23UE,Docks Complex - Catering Servs,RB110,Catering Provisions -Food,5110,Food,09/12/2015,411828,11.22,NET,Janes Pantry,24500W
Gloucester City Council,23UE,Docks Complex - Catering Servs,RB110,Catering Provisions -Food,5110,Food,09/12/2015,411829,14.14,NET,Janes Pantry,24500W
Gloucester City Council,23UE,Docks Complex - Catering Servs,RB110,Catering Provisions -Food,5110,Food,09/12/2015,411830,12.05,NET,Janes Pantry,24500W
Gloucester City Council,23UE,Docks Complex - Catering Servs,RB110,Catering Provisions -Food,5110,Food,09/12/2015,411831,14.66,NET,Janes Pantry,24500W
Gloucester City Council,23UE,Docks Complex - Catering Servs,RB110,Catering Provisions -Food,5110,Food,09/12/2015,411832,14.66,NET,Janes Pantry,24500W
Gloucester City Council,23UE,Docks Complex - Catering Servs,RB110,Catering Provisions -Food,5110,Food,09/12/2015,411833,6.8,NET,Janes Pantry,24500W
Gloucester City Council,23UE,Docks Complex - Catering Servs,RB110,Catering Provisions -Food,5110,Food,09/12/2015,411834,9.78,NET,Janes Pantry,24500W
Gloucester City Council,23UE,Docks Complex - Catering Servs,RB110,Catering Provisions -Food,5110,Food,09/12/2015,411835,7.53,NET,Janes Pantry,24500W
Gloucester City Council,23UE,Docks Complex - Catering Servs,RB110,Catering Provisions -Food,5110,Food,09/12/2015,411836,13.05,NET,Janes Pantry,24500W
Gloucester City Council,23UE,Docks Complex - Catering Servs,RB110,Catering Provisions -Food,5110,Food,09/12/2015,411837,11.87,NET,Janes Pantry,24500W
Gloucester City Council,23UE,Docks Complex - Catering Servs,RB110,Catering Provisions -Food,5110,Food,09/12/2015,411838,17.24,NET,Janes Pantry,24500W
Gloucester City Council,23UE,Docks Complex - Catering Servs,RB110,Catering Provisions -Food,5110,Food,09/12/2015,411839,10.42,NET,Janes Pantry,24500W
Gloucester City Council,23UE,Docks Complex - Catering Servs,RB110,Catering Provisions -Food,5110,Food,09/12/2015,411840,8.27,NET,Janes Pantry,24500W
Gloucester City Council,23UE,Docks Complex - Catering Servs,RB110,Catering Provisions -Food,5110,Food,09/12/2015,411841,10.49,NET,Janes Pantry,24500W
Gloucester City Council,23UE,Docks Complex - Catering Servs,RB110,Catering Provisions -Food,5110,Food,09/12/2015,411869,357.31,NET,Bidvest Foodservice (3663),55585U
Gloucester City Council,23UE,Docks Complex - Catering Servs,RB110,Catering Provisions -Food,5110,Food,09/12/2015,411870,382.7,NET,Bidvest Foodservice (3663),55585U
Gloucester City Council,23UE,Docks Complex - Catering Servs,RB110,Catering Provisions -Food,5110,Food,09/12/2015,411871,2.12,NET,Janes Pantry,24500W
Gloucester City Council,23UE,Docks Complex - Services,RB100,Recycling,3631,confidential waste recycling,09/12/2015,411562,141.9,NET,Printwaste Recycling,57114W
Gloucester City Council,23UE,Docks Complex - Services,RB100,Recycling,3631,Guildhall recycling,09/12/2015,411561,63.3,NET,Printwaste Recycling,57114W
Gloucester City Council,23UE,Electrical Investigatory Works,RY142,Contract Payments,0020,Domestic Monitoring contract DEC15-FEB16,09/12/2015,411741,3146.25,CAP,Kingfisher Environmental Services Ltd,04738V
Gloucester City Council,23UE,Environmental Planning,LM340,Fees For Services Received,5350,Kingsway ponds clearance works,09/12/2015,411546,3125,NET,Charlton Abbotts Forestry Ltd,14989X
Gloucester City Council,23UE,Financial Services,RT200,Fees For Services Received,5350,style festival,09/12/2015,409484,15000,NET,Local World Ltd,08556P
Gloucester City Council,23UE,Flooding And Drainage,HE306,Maint Of Grounds - General,3030,Watercourse clearance,09/12/2015,411660,1590,NET,Rdb Safety Boat Ltd,13507J
Gloucester City Council,23UE,Folk Museum,LM210,Other Minor Supplies Services,5590,LED lighting for Folk Museum,09/12/2015,411581,10535.5,NET,Total Lighting Controls Ltd,02415U
Gloucester City Council,23UE,Group Mgr Cult Ser & Tourism,GR102,Consultants Fees,5349,catering review part 2,09/12/2015,411567,4000,NET,Mya Consulting,15843U
Gloucester City Council,23UE,Group Mgr Cult Ser & Tourism,GR102,Consultants Fees,5349,Catering Review Quotation,09/12/2015,411668,4000,NET,Mya Consulting,15843U
Gloucester City Council,23UE,Guildhall Cinema,LA202,Fees For Services Received,5350,Film transport,09/12/2015,411720,219.59,NET,Nft Logistics Ltd,13505N
Gloucester City Council,23UE,REDACTED,REDACTED,REDACTED,REDACTED,REDACTED,09/12/2015,REDACTED,2049.83,NET,REDACTED,REDACTED
Gloucester City Council,23UE,REDACTED,REDACTED,REDACTED,REDACTED,REDACTED,09/12/2015,REDACTED,72,NET,REDACTED,REDACTED
Gloucester City Council,23UE,REDACTED,REDACTED,REDACTED,REDACTED,REDACTED,09/12/2015,REDACTED,250,NET,REDACTED,REDACTED
Gloucester City Council,23UE,REDACTED,REDACTED,REDACTED,REDACTED,REDACTED,09/12/2015,REDACTED,272.72,NET,REDACTED,REDACTED
Gloucester City Council,23UE,REDACTED,REDACTED,REDACTED,REDACTED,REDACTED,09/12/2015,REDACTED,287.76,NET,REDACTED,REDACTED
Gloucester City Council,23UE,REDACTED,REDACTED,REDACTED,REDACTED,REDACTED,09/12/2015,REDACTED,368.2,NET,REDACTED,REDACTED
Gloucester City Council,23UE,REDACTED,REDACTED,REDACTED,REDACTED,REDACTED,09/12/2015,REDACTED,300,NET,REDACTED,REDACTED
Gloucester City Council,23UE,REDACTED,REDACTED,REDACTED,REDACTED,REDACTED,09/12/2015,REDACTED,400,NET,REDACTED,REDACTED
Gloucester City Council,23UE,REDACTED,REDACTED,REDACTED,REDACTED,REDACTED,09/12/2015,REDACTED,400,NET,REDACTED,REDACTED
Gloucester City Council,23UE,Internal Health & Safety,EH110,Other Minor Supplies Services,5590,first aid supplies,09/12/2015,411250,102.92,NET,Selles Medical Ltd,50592W
Gloucester City Council,23UE,Investment Property,RB500,Consultants Fees,5349,Site Solutions Commercial,09/12/2015,411797,245,NET,Landmark Information Group Ltd,59535W
Gloucester City Council,23UE,Investment Property,RB500,General Repair/Maint Buildings,3000,"Janes Pantry, regular maintenance",09/12/2015,411696,120,NET,Three Counties Drain Service,44033V
Gloucester City Council,23UE,Investment Property,RB500,General Repair/Maint Buildings,3000,Regular Maintenance,09/12/2015,411695,180,NET,Three Counties Drain Service,44033V
Gloucester City Council,23UE,Marchants,LT108,Materials For Sale,5080,Sales on Tickets September 2015,09/12/2015,411650,4108,NET,Marchants Coaches Ltd,48151Y
Gloucester City Council,23UE,Museum Phase 2 Hlf,GY001,Contract Payments,0020,Advertisement 17/11/2015,09/12/2015,411414,87.65,CAP,Local World Ltd,08556P
Gloucester City Council,23UE,National Express,LT105,Materials For Sale,5080,tickets sold on commission NOV15,09/12/2015,411578,9940.8,NET,National Express Ltd,31455K
Gloucester City Council,23UE,National Express,LT105,Sale Of Goods And Services,9230,tickets sold on commission NOV15,09/12/2015,411578,-947.33,NET,National Express Ltd,31455K
Gloucester City Council,23UE,Off Street Car Parks,PP110,General Repair/Maint Buildings,3000,Cable Ties,09/12/2015,411862,15,NET,Ermin Plant Hire & Services Ltd,14150V
Gloucester City Council,23UE,Off Street Car Parks,PP110,Rents,3200,Rent,09/12/2015,411405,118.75,NET,Telereal Services Ltd,15121I
Gloucester City Council,23UE,Off Street Car Parks,PP110,Rents,3200,Rent Receivable,09/12/2015,411417,600,NET,Boots The Chemist,04540V
Gloucester City Council,23UE,Pollution Control,HE300,Fees For Services Received,5350,Moped Removal,09/12/2015,411661,90,NET,Rdb Safety Boat Ltd,13507J
Gloucester City Council,23UE,Rugby World Cup,LT450,Fees For Services Received,5350,Room Hire 14/11/15,09/12/2015,411842,136,NET,Roots Coffee & Community Cic,13358B
Gloucester City Council,23UE,Safe At Home Grants,CY012,Other Capital Grants,0089,Safe at Home SEP15-NOV15,09/12/2015,411526,4934,CAP,Gloucestershire County Council,18650D
Gloucester City Council,23UE,Ugly Structures,GY010,Contract Payments,0020,Light Installation,09/12/2015,411843,1000,CAP,Shared Space And Light,16201J
Gloucester City Council,23UE,Vehicles,RS140,Fuel,4012,vehicle fuel,09/12/2015,411716,269.71,NET,Allstar Business Solutions Ltd (Arval),06594A
Gloucester City Council,23UE,City Museum And Art Gallery,LM200,Publications For Sale,5064,goods for resale,10/12/2015,411306,272.28,NET,Half Moon Bay Ltd,08240F
Gloucester City Council,23UE,City Museum And Art Gallery,LM200,Publications For Sale,5064,GOODS FOR RESALE,10/12/2015,411925,453.1,NET,Wild And Wolf Ltd,15010D
Gloucester City Council,23UE,Civica Admin Charges,RT105,Fees For Services Received,5350,CHD subscription advance,10/12/2015,411923,4,NET,Companies House,58954E
Gloucester City Council,23UE,Contact Centre,RB300,Basic Pay - Temporary Staff,2751,temporary staff w/e 28/8/15,10/12/2015,411918,1344.85,NET,One To One Recruitment,04752H
Gloucester City Council,23UE,Contact Centre,RB300,Basic Pay - Temporary Staff,2751,temporary staff w/e 28/8/15,10/12/2015,411919,886.82,NET,One To One Recruitment,04752H
Gloucester City Council,23UE,REDACTED,REDACTED,REDACTED,REDACTED,REDACTED,10/12/2015,REDACTED,192.5,NET,REDACTED,REDACTED
Gloucester City Council,23UE,Docks Complex - Castlemeads Cp,RB210,Maint Of Grounds - General,3030,Castlemeads car park line marking,10/12/2015,411930,300,NET,Roadmark Ltd,37743T
Gloucester City Council,23UE,Economic Development,FP300,Consultants Fees,5349,Economic Development Strategic Review,10/12/2015,411844,3792.5,NET,Hardisty Jones Associates,15809U
Gloucester City Council,23UE,Economic Development,FP300,Consultants Fees,5349,Economic Development Strategic Review,10/12/2015,411845,4131.21,NET,Hardisty Jones Associates,15809U
Gloucester City Council,23UE,Folk Museum,LM210,Security Services Fees,5351,Alarm call out 17/11/15,10/12/2015,411926,31,NET,Glevum Security Ltd,03249B
Gloucester City Council,23UE,REDACTED,REDACTED,REDACTED,REDACTED,REDACTED,10/12/2015,REDACTED,579.5,CAP,REDACTED,REDACTED
Gloucester City Council,23UE,Gloucester Guildhall,LA100,Subscriptions,5600,MEMBERSHIP 2015-2016,10/12/2015,411924,235,NET,Green Business Uk,06576C
Gloucester City Council,23UE,Green Garden Waste,HI105,Basic Pay - Temporary Staff,2751,Temporary staff w/e 4/12/15,10/12/2015,411922,457.25,NET,One To One Recruitment,04752H
Gloucester City Council,23UE,Head Of Regeneration & Eco Dev,GO102,Hospitality,5122,conservatory hire 4/11/15,10/12/2015,411520,222,NET,Aspire Sports & Cultural Trust,08135V
Gloucester City Council,23UE,REDACTED,REDACTED,REDACTED,REDACTED,REDACTED,10/12/2015,REDACTED,368.2,NET,REDACTED,REDACTED
Gloucester City Council,23UE,REDACTED,REDACTED,REDACTED,REDACTED,REDACTED,10/12/2015,REDACTED,395,NET,REDACTED,REDACTED
Gloucester City Council,23UE,Retail Market - Landlord,HM300,Operational Equipment <5000,5012,DEC15 compactor rental,10/12/2015,411931,280.56,NET,System Rental Uk Ltd,03239E
Gloucester City Council,23UE,The Arbor,HC501,Catering Provisions -Food,5110,food,10/12/2015,410806,94.08,NET,Janes Pantry,24500W
Gloucester City Council,23UE,The Arbor,HC501,Catering Provisions -Food,5110,food,10/12/2015,411247,152.82,NET,Janes Pantry,24500W
Gloucester City Council,23UE,The Arbor,HC501,Catering Provisions -Food,5110,Food w/e 29/11/2015,10/12/2015,411673,170.29,NET,Janes Pantry,24500W
Gloucester City Council,23UE,The Arbor,HC501,Maint Agreements - Buildings,3010,monthly machine warranty,10/12/2015,411305,61.58,NET,Caffeica Ltd,11923J
Gloucester City Council,23UE,Townscape Heritage Initiative,LY145,Contract Payments,0020,QUANTITY SURVEYING SERVICES,10/12/2015,411929,2256,CAP,Peter Crighton And Associates,16202G
Gloucester City Council,23UE,Bus Station,RB400,Water Supply,3400,ACCT 7890105225,11/12/2015,405726,163.53,NET,Severn Trent Water,01823H
Gloucester City Council,23UE,Bus Station,RB400,Water Supply,3400,ACCT 7890105225,11/12/2015,409058,169.17,NET,Severn Trent Water,01823H
Gloucester City Council,23UE,Cemeteries,HC300,Basic Pay - Temporary Staff,2751,Temporary staff w/e 29/11/15,11/12/2015,411916,439.88,NET,Premiere Employment Group Ltd,55468Z
Gloucester City Council,23UE,Cemeteries,HC300,Operational Materials,5070,Sweeping - 02/11 - 03/11 2015,11/12/2015,411648,128,NET,Enterprise (Aol) Ltd,06695G
Gloucester City Council,23UE,Civica It Contract,RT270,Contracted Services,6970,IT Managed Services,11/12/2015,411665,47916.67,NET,Civica Uk Ltd,10841X
Gloucester City Council,23UE,Contact Centre,RB300,Basic Pay - Temporary Staff,2751,temporary staff w/e 6/12/15,11/12/2015,411921,720,NET,Morgan Hunt Uk Ltd,04451S
Gloucester City Council,23UE,Council Streetcare Team,HI101,Water Supply,3400,ACCT 7890105225,11/12/2015,405726,780.61,NET,Severn Trent Water,01823H
Gloucester City Council,23UE,Council Streetcare Team,HI101,Water Supply,3400,ACCT 7890105225,11/12/2015,409058,104.28,NET,Severn Trent Water,01823H
Gloucester City Council,23UE,Countryside Unit,LP201,Water Supply,3400,ACCT 7890105225,11/12/2015,405726,1241.88,NET,Severn Trent Water,01823H
Gloucester City Council,23UE,Crematorium,HC200,Water Supply,3400,ACCT 7890105225,11/12/2015,405726,2107.5,NET,Severn Trent Water,01823H
Gloucester City Council,23UE,Crematorium,HC200,Water Supply,3400,ACCT 7890105225,11/12/2015,409058,37.7,NET,Severn Trent Water,01823H
Gloucester City Council,23UE,Development Management,PT200,Advertising And Publicity,5702,Advertisement 03/12/2015,11/12/2015,411850,262.94,NET,Local World Ltd,08556P
Gloucester City Council,23UE,REDACTED,REDACTED,REDACTED,REDACTED,REDACTED,11/12/2015,REDACTED,3975,CAP,REDACTED,REDACTED
Gloucester City Council,23UE,Docks Complex - Services,RB100,Water Supply,3400,ACCT 7890105225,11/12/2015,405726,1148.66,NET,Severn Trent Water,01823H
Gloucester City Council,23UE,Economic Development,FP300,Business Grant,7116,broadband voucher Strategic IT,11/12/2015,411963,3000,NET,Stream Networks,16134Y
Gloucester City Council,23UE,Events,LT410,Events,5952,NOV2015 Docks fireworks,11/12/2015,411938,7600,NET,Merlin Fireworks Ltd,15045H
Gloucester City Council,23UE,Flood Defence Grants To Househ,CY011,Disabled Facility Grants,0074,modular ramping contribution,11/12/2015,411962,8000,CAP,Gloucestershire County Council,18650D
Gloucester City Council,23UE,Gloucester Guildhall,LA100,Water Supply,3400,ACCT 7890105225,11/12/2015,409058,329.44,NET,Severn Trent Water,01823H
Gloucester City Council,23UE,Guildhall Lettings,LA400,Charges For Use Of Facilities,9430,REFUND FOR PARTIAL ROOM HIRE 15/11/15,11/12/2015,411966,337,NET,Churches For Change,14084G
Gloucester City Council,23UE,Hackney Carriages,HL100,Fees For Services Received,5350,"DBS checks, NOV15",11/12/2015,411713,572,NET,Disclosure And Barring Service,00119W
Gloucester City Council,23UE,Hackney Carriages,HL100,Fees For Services Received,5350,DVLA Electronic Check,11/12/2015,411854,94.25,NET,Intelligent Data Systems (Uk) Ltd,11067G
Gloucester City Council,23UE,Hackney Carriages,HL100,Other Minor Supplies Services,5590,Licence plate sets,11/12/2015,411727,3454.9,NET,Mogo Uk,56615B
Gloucester City Council,23UE,Homelessness,CH120,Board And Lodging,5515,various tenants,11/12/2015,411971,1396.6,NET,James Legge Property (Ltd),07844R
Gloucester City Council,23UE,Homelessness,CH120,Board And Lodging,5515, various tenants,11/12/2015,411968,1056.86,NET,Carbrey Housing Ltd,11098G
Gloucester City Council,23UE,Homelessness,CH120,Board And Lodging,5515,various tenants,11/12/2015,411972,6723.02,NET,REDACTED,REDACTED
Gloucester City Council,23UE,Homelessness,CH120,Board And Lodging,5515,various tenants,11/12/2015,411973,1340.75,NET,Dorchester Guest House,12298D
Gloucester City Council,23UE,REDACTED,REDACTED,REDACTED,REDACTED,REDACTED,11/12/2015,REDACTED,1451.06,NET,REDACTED,REDACTED
Gloucester City Council,23UE,REDACTED,REDACTED,REDACTED,REDACTED,REDACTED,11/12/2015,REDACTED,294.87,NET,REDACTED,REDACTED
Gloucester City Council,23UE,Homelessness,CH120,Rent In Advance,5516,ria & deposit,11/12/2015,411959,368.2,NET,Cgt Lettings Ltd,09004C
Gloucester City Council,23UE,Homelessness Prevention,CH122,Fees For Services Received,5350,ria & deposit,11/12/2015,411959,400,NET,Cgt Lettings Ltd,09004C
Gloucester City Council,23UE,Housing Works In Default,HD500,Clearance And Cleansing Fees,5384,Parry Road,11/12/2015,411406,3467.39,NET,Rf Gardiner Limited,12299B
Gloucester City Council,23UE,Investment Property,RB500,Water Supply,3400,ACCT 7890105225,11/12/2015,405726,291.51,NET,Severn Trent Water,01823H
Gloucester City Council,23UE,Investment Property,RB500,Water Supply,3400,ACCT 7890105225,11/12/2015,409058,-1470.42,NET,Severn Trent Water,01823H
Gloucester City Council,23UE,Kings Quarter,RY146,Contract Payments,0020,Fees for sub agent,11/12/2015,411868,1250,CAP,Gva Grimley,56359W
Gloucester City Council,23UE,Northwarehouse,RB150,Lift Maintenance,3051,MAY-AUG 2015,11/12/2015,400541,670.19,NET,Schindler Ltd,06826C
Gloucester City Council,23UE,Off Street Car Parks,PP110,Buildings Insurance,3800,Kings Walk car park insurance,11/12/2015,411233,334.75,NET,Colliers International,15540S
Gloucester City Council,23UE,Off Street Car Parks,PP110,Water Supply,3400,ACCT 7890105225,11/12/2015,405726,1963.43,NET,Severn Trent Water,01823H
Gloucester City Council,23UE,Off Street Car Parks,PP110,Water Supply,3400,ACCT 7890105225,11/12/2015,409058,2840.85,NET,Severn Trent Water,01823H
Gloucester City Council,23UE,Planning Policy,PT300,Basic Pay -Admin /Prof Staff,2601,temporary staff w/e 22/11/15,11/12/2015,411343,2209.75,NET,The Oyster Partnership Limited,14900T
Gloucester City Council,23UE,Public Conveniences (Client),HI400,Water Supply,3400,ACCT 7890105225,11/12/2015,405726,226.04,NET,Severn Trent Water,01823H
Gloucester City Council,23UE,Public Conveniences (Client),HI400,Water Supply,3400,ACCT 7890105225,11/12/2015,409058,169.17,NET,Severn Trent Water,01823H
Gloucester City Council,23UE,REDACTED,REDACTED,REDACTED,REDACTED,REDACTED,11/12/2015,REDACTED,180,NET,REDACTED,REDACTED
Gloucester City Council,23UE,REDACTED,REDACTED,REDACTED,REDACTED,REDACTED,11/12/2015,REDACTED,-15,NET,REDACTED,REDACTED
Gloucester City Council,23UE,Westgate Leisure Area S106,LY155,Contract Payments,0020,Westgate Park- Replace Gate,11/12/2015,411860,450,CAP,Greenfields Garden Services Ltd,48130G
Gloucester City Council,23UE,Council Streetcare Team,HI101,General Repair/Maint Buildings,3000,Handylink service,14/12/2015,411577,133.23,NET,Gloucester City Homes,05244T
Gloucester City Council,23UE,Council Streetcare Team,HI101,Window Cleaning,3610,Window Cleaning November 2015,14/12/2015,411855,130,NET,Poles Apart Window Cleaning,11636R
Gloucester City Council,23UE,Development Management,PT200,Basic Pay - Temporary Staff,2751,temporary staff 6/12/15,14/12/2015,412017,720,NET,The Oyster Partnership Limited,14900T
Gloucester City Council,23UE,Guildhall Bar And Caf�,LA210,Catering Provisions -Food,5110,FOOD,14/12/2015,411927,26.8,NET,Janes Pantry,24500W
Gloucester City Council,23UE,Guildhall Bar And Caf�,LA210,Catering Provisions -Liquor,5111,Rental,14/12/2015,411659,43.66,NET,Boc Ltd,59172L
Gloucester City Council,23UE,REDACTED,REDACTED,REDACTED,REDACTED,REDACTED,14/12/2015,REDACTED,130,NET,REDACTED,REDACTED
Gloucester City Council,23UE,Homelessness,CH120,Rent In Advance,5516,ria & deposit,14/12/2015,412033,106.24,NET,Barton & Tredworth Developments Ltd,58165T
Gloucester City Council,23UE,Homelessness Prevention,CH122,Fees For Services Received,5350,ria & deposit,14/12/2015,412033,400,NET,Barton & Tredworth Developments Ltd,58165T
Gloucester City Council,23UE,Off Street Car Parks,PP110,General Repair/Maint Buildings,3000,St Michael's Sq car park barrier,14/12/2015,411961,794,NET,J M Grail (General Engineering) Ltd,03204A
Gloucester City Council,23UE,Planning Policy,PT300,Basic Pay -Admin /Prof Staff,2601,temporary staff w/e 29/11/2015,14/12/2015,411638,2226.75,NET,The Oyster Partnership Limited,14900T
Gloucester City Council,23UE,Pollution Control,HE300,Fees For Services Received,5350,Historical Grid mapping data remewal,14/12/2015,412020,250,NET,Landmark Information Group Ltd,59535W
Gloucester City Council,23UE,Shopmobility,PE200,Maintenance Of Equipment,5030,Various Repairs,14/12/2015,411674,94,NET,Disabled Care & Mobility,12675V
Gloucester City Council,23UE,Targeted Historic Grants,GY008,Contract Payments,0020,GRANT PAYMENT RE 24 WESTGATE ST,14/12/2015,412003,6951,CAP,Eviria Group Ltd,16039T
Gloucester City Council,23UE,Taxi Marshalling Scheme,HL101,Taxi Marshals,5387,taxi marshalls,14/12/2015,412021,126.5,NET,Cuff Security Services Ltd,12073G
Gloucester City Council,23UE,Taxi Marshalling Scheme,HL101,Taxi Marshals,5387,taxi marshalls,14/12/2015,412022,158.13,NET,Cuff Security Services Ltd,12073G
Gloucester City Council,23UE,Taxi Marshalling Scheme,HL101,Taxi Marshals,5387,taxi marshalls,14/12/2015,412023,161,NET,Cuff Security Services Ltd,12073G
Gloucester City Council,23UE,Taxi Marshalling Scheme,HL101,Taxi Marshals,5387,taxi marshalls,14/12/2015,412024,161,NET,Cuff Security Services Ltd,12073G
Gloucester City Council,23UE,Taxi Marshalling Scheme,HL101,Taxi Marshals,5387,taxi marshalls,14/12/2015,412025,172.5,NET,Cuff Security Services Ltd,12073G
Gloucester City Council,23UE,Taxi Marshalling Scheme,HL101,Taxi Marshals,5387,taxi marshalls,14/12/2015,412026,172.5,NET,Cuff Security Services Ltd,12073G
Gloucester City Council,23UE,Taxi Marshalling Scheme,HL101,Taxi Marshals,5387,taxi marshalls,14/12/2015,412027,172.5,NET,Cuff Security Services Ltd,12073G
Gloucester City Council,23UE,Taxi Marshalling Scheme,HL101,Taxi Marshals,5387,taxi marshalls,14/12/2015,412028,172.5,NET,Cuff Security Services Ltd,12073G
Gloucester City Council,23UE,The Arbor,HC501,Catering Provisions -Food,5110,"oven cloth, tea towels, apron",14/12/2015,412030,79.94,NET,Bidvest Foodservice (3663),55585U
Gloucester City Council,23UE,Tourism Marketing,LT100,Rents,3200,Rent for 25/12/2015 quarter,14/12/2015,411656,5725,NET,P W Fido & Associates,01210A
Gloucester City Council,23UE,Crematorium,HC200,Maint Of Grounds - General,3030,Roses,15/12/2015,411715,6475,NET,Genus Softworks Ltd,12320N
Gloucester City Council,23UE,Crematorium,HC200,Memorial Plaques,5053,vase block tablet,15/12/2015,412029,80,NET,The Columbaria Company,55078T
Gloucester City Council,23UE,Economic Development,FP300,Business Grant,7116,broadband voucher,15/12/2015,412054,2985,NET,Lister Communications Ltd,15800N
Gloucester City Council,23UE,General Drainage Works,PY241,Contract Payments,0020,Flood Warning System,15/12/2015,411849,3335.3,CAP,Hydro-Logic Services Llp,15842W
Gloucester City Council,23UE,General Drainage Works,PY241,Contract Payments,0020,Hydraulic modelling for Barnwood Park,15/12/2015,412071,1200,CAP,Richard Allitt Associates Ltd,14764A
Gloucester City Council,23UE,REDACTED,REDACTED,REDACTED,REDACTED,REDACTED,15/12/2015,REDACTED,195,NET,REDACTED,REDACTED
Gloucester City Council,23UE,REDACTED,REDACTED,REDACTED,REDACTED,REDACTED,15/12/2015,REDACTED,748.56,NET,REDACTED,REDACTED
Gloucester City Council,23UE,Longlevens Np Active Together,LY161,Contract Payments,0020,Full Upton Shelter,15/12/2015,412055,7000,CAP,Sunshine Playgrounds Ltd,14958J
Gloucester City Council,23UE,Rehousing,CH111,Fees For Services Received,5350,Medical Reports,15/12/2015,411847,50,NET,Drs Miller & Mann,10432RV
Gloucester City Council,23UE,Rugby World Cup,LT450,Fees For Services Received,5350,equipment hire re RWC fanzone,15/12/2015,412069,550.7,NET,Ermin Plant Hire & Services Ltd,14150V
Gloucester City Council,23UE,Taxi Marshalling Scheme,HL101,Taxi Marshals,5387,taxi marshalls,15/12/2015,412056,155.25,NET,Cuff Security Services Ltd,12073G
Gloucester City Council,23UE,Taxi Marshalling Scheme,HL101,Taxi Marshals,5387,taxi marshalls,15/12/2015,412057,172.5,NET,Cuff Security Services Ltd,12073G
Gloucester City Council,23UE,Taxi Marshalling Scheme,HL101,Taxi Marshals,5387,taxi marshalls,15/12/2015,412058,132.25,NET,Cuff Security Services Ltd,12073G
Gloucester City Council,23UE,City Museum And Art Gallery,LM200,Operational Equipment <5000,5012,Folk Museum cards,16/12/2015,412095,420,NET,Pcd Plastic Cards Direct Ltd,15797Z
Gloucester City Council,23UE,Client Revs & Bens Contract,RT240,Bailiffs Fees,5368,VAT only invoice,16/12/2015,412005,0,NET,Bristow & Sutor,05450M
Gloucester City Council,23UE,Client Revs & Bens Contract,RT240,Fees For Services Received,5350,CTax/Ndr arrest & detention services,16/12/2015,412102,99,NET,Assevarate Ltd,11749A
Gloucester City Council,23UE,Crematorium,HC200,Maint Of Grounds - General,3030,Tree Ties,16/12/2015,412126,237.5,NET,Genus Plant Sourcing,14143S
Gloucester City Council,23UE,Development Management,PT200,Advertising And Publicity,5702,Advertisement 08/12/2015,16/12/2015,412116,175.3,NET,Local World Ltd,08556P
Gloucester City Council,23UE,Docks Complex - Catering Servs,RB110,Catering Provisions -Food,5110,Buffet menu N8,16/12/2015,412053,190.4,NET,Janes Pantry,24500W
Gloucester City Council,23UE,Docks Complex - Catering Servs,RB110,Catering Provisions -Food,5110,Buffet meun N2,16/12/2015,412098,87.12,NET,Janes Pantry,24500W
Gloucester City Council,23UE,General Drainage Works,PY241,Contract Payments,0020,River Twyver headwall works,16/12/2015,412092,1620,CAP,Rj Contracting (Environmental) Ltd,07429H
Gloucester City Council,23UE,General Drainage Works,PY241,Contract Payments,0020,St Oswalds silt samples,16/12/2015,412094,895,CAP,Rj Contracting (Environmental) Ltd,07429H
Gloucester City Council,23UE,General Drainage Works,PY241,Contract Payments,0020,St Oswalds water course clearance,16/12/2015,412093,1750,CAP,Rj Contracting (Environmental) Ltd,07429H
Gloucester City Council,23UE,Green Garden Waste,HI105,Basic Pay - Temporary Staff,2751,Temporary staff w/e 11/12/2015,16/12/2015,412164,558,NET,One To One Recruitment,04752H
Gloucester City Council,23UE,Guildhall Bar And Caf�,LA210,Catering Provisions -Food,5110,Food,16/12/2015,412163,165.69,NET,Woodward Foodservice,10714F
Gloucester City Council,23UE,Guildhall Bar And Caf�,LA210,Catering Provisions -Liquor,5111,Drinks,16/12/2015,412109,1014.58,NET,Cellar Supplies Cheltenham Ltd,01563L
Gloucester City Council,23UE,Guildhall Bar And Caf�,LA210,Catering Provisions -Liquor,5111,Gloucester Gold,16/12/2015,412105,114,NET,Gloucester Brewery,13373F
Gloucester City Council,23UE,Guildhall Bar And Caf�,LA210,Hire Of Equipment,5020,Plastic Tumblers,16/12/2015,412104,652.5,NET,Gerry Dance Disposables Ltd,54579Y
Gloucester City Council,23UE,REDACTED,REDACTED,REDACTED,REDACTED,REDACTED,16/12/2015,REDACTED,450,NET,REDACTED,REDACTED
Gloucester City Council,23UE,REDACTED,REDACTED,REDACTED,REDACTED,REDACTED,16/12/2015,REDACTED,1476.8,NET,REDACTED,REDACTED
Gloucester City Council,23UE,REDACTED,REDACTED,REDACTED,REDACTED,REDACTED,16/12/2015,REDACTED,1950.85,NET,REDACTED,REDACTED
Gloucester City Council,23UE,Guildhall Events,LA200,Performing Rights Society Subs,5622,Charges Apr 14 - Apr 16,16/12/2015,412158,4850.21,NET,Prs For Music,05077M
Gloucester City Council,23UE,Homelessness Prevention,CH122,Basic Pay - Temporary Staff,2751,Temp Hours w/e 06/12/2015,16/12/2015,412117,795.5,NET,Greenacre Recruitment Ltd,15817V
Gloucester City Council,23UE,REDACTED,REDACTED,REDACTED,REDACTED,REDACTED,16/12/2015,REDACTED,2856.2,NET,REDACTED,REDACTED
Gloucester City Council,23UE,Internal Health & Safety,EH110,Other Minor Supplies Services,5590,FRX smart pads II,16/12/2015,411319,46.33,NET,St John Ambulance Supplies,57856R
Gloucester City Council,23UE,Longlevens Np Active Together,LY161,Contract Payments,0020,play area equipment,16/12/2015,412018,2665,CAP,Proludic Ltd,03576G
Gloucester City Council,23UE,Off Street Car Parks,PP110,Rents,3200,Car Park DEC15-MAR16,16/12/2015,412089,63528.19,NET,Workman Llp,11021M
Gloucester City Council,23UE,Off Street Car Parks,PP110,Rents,3200,car park office,16/12/2015,412008,125,NET,Workman Llp,11021M
Gloucester City Council,23UE,Off Street Car Parks,PP110,Service Charges,3020,Car Park DEC15-MAR16,16/12/2015,412089,1927.71,NET,Workman Llp,11021M
Gloucester City Council,23UE,Off Street Car Parks,PP110,Service Charges,3020,car park office,16/12/2015,412008,245.1,NET,Workman Llp,11021M
Gloucester City Council,23UE,Off Street Car Parks,PP110,Service Charges,3020,pedestrian access,16/12/2015,412009,908.78,NET,Workman Llp,11021M
Gloucester City Council,23UE,Retail Market - Landlord,HM300,Service Charges,3020,market hall,16/12/2015,412010,11015.5,NET,Workman Llp,11021M
Gloucester City Council,23UE,Retail Market - Landlord,HM300,Window Cleaning,3610,Monthly Window Clean December 2015,16/12/2015,412115,140,NET,Cornwall Cleaning Services,14050A
Gloucester City Council,23UE,Robinswoodhill Trading Account,LP203,Maint Of Grounds - General,3030,Various Items,16/12/2015,411853,1440,NET,Fuelwood (Warwick) Limited,16204C
Gloucester City Council,23UE,Tic Theatre Ticket Sales,LT107,Materials For Sale,5080,Gloucester Quays fireworks 2015,16/12/2015,412171,3314,NET,Gloucester Round Table,53781L
Gloucester City Council,23UE,Tic Theatre Ticket Sales,LT107,Materials For Sale,5080,TICKET SALES BBC GLOS XMAS 2015,16/12/2015,412172,1974,NET,Bbc Radio Gloucestershire,14597V
Gloucester City Council,23UE,Tic Theatre Ticket Sales,LT107,Other Minor Income,9900,TICKET SALES BBC GLOS XMAS 2015,16/12/2015,412172,-28.2,NET,Bbc Radio Gloucestershire,14597V
Gloucester City Council,23UE,Tic Theatre Ticket Sales,LT107,Sale Of Goods And Services,9230,Gloucester Quays fireworks 2015,16/12/2015,412171,-138.08,NET,Gloucester Round Table,53781L
Gloucester City Council,23UE,Tic Theatre Ticket Sales,LT107,Sale Of Goods And Services,9230,TICKET SALES BBC GLOS XMAS 2015,16/12/2015,412172,-164.5,NET,Bbc Radio Gloucestershire,14597V
Gloucester City Council,23UE,Vehicles,RS140,Routine R And M - Vehicles,4011,Valet Servicing,16/12/2015,412108,68,NET,L W Valeting,16209S
Gloucester City Council,23UE,REDACTED,REDACTED,REDACTED,REDACTED,REDACTED,17/12/2015,REDACTED,500,NET,REDACTED,REDACTED
Gloucester City Council,23UE,Aspire Admin Charges,LC105,Fees For Services Received,5350,SEP15 staff membership,17/12/2015,412085,45,NET,Aspire Sports & Cultural Trust,08135V
Gloucester City Council,23UE,Aspire Admin Charges,LC105,Fees For Services Received,5350,Staff Memberships November 2015,17/12/2015,412131,609,NET,Aspire Sports & Cultural Trust,08135V
Gloucester City Council,23UE,Aspire Admin Charges,LC105,Security Services Fees,5351,Services January 2016,17/12/2015,412166,184.94,NET,G4s Cash Solutions (Uk) Ltd,04290V
Gloucester City Council,23UE,Cemeteries,HC300,Maint Of Grounds - General,3030,Various Items,17/12/2015,412150,315,NET,John Hall Funeral Directors,15801L
Gloucester City Council,23UE,Cemeteries,HC300,Operational Materials,5070,Various Items,17/12/2015,412149,74.1,NET,Spaldings,48759Y
Gloucester City Council,23UE,Cemeteries,HC300,Routine R And M - Vehicles,4011,Repairs,17/12/2015,412143,75,NET,Garden Machinery Gloucester,55641K
Gloucester City Council,23UE,Cemeteries,HC300,Routine R And M - Vehicles,4011,Repairs,17/12/2015,412144,25,NET,Garden Machinery Gloucester,55641K
Gloucester City Council,23UE,Cemeteries,HC300,Routine R And M - Vehicles,4011,Various Items,17/12/2015,412140,83.08,NET,Garden Machinery Gloucester,55641K
Gloucester City Council,23UE,Cemeteries,HC300,Routine R And M - Vehicles,4011,Various Items,17/12/2015,412142,69.49,NET,Garden Machinery Gloucester,55641K
Gloucester City Council,23UE,Cemeteries,HC300,Routine R And M - Vehicles,4011,Various Repairs,17/12/2015,412141,310.65,NET,Garden Machinery Gloucester,55641K
Gloucester City Council,23UE,Cemeteries,HC300,Tyres,4014,Repairs,17/12/2015,412146,22,NET,A T S Euromaster Ltd,01860B
Gloucester City Council,23UE,Cemeteries,HC300,Tyres,4014,Repairs,17/12/2015,412147,61.3,NET,A T S Euromaster Ltd,01860B
Gloucester City Council,23UE,Cems/Crems Admin,HC100,Security Services Fees,5351,Services January 2016,17/12/2015,412166,105.42,NET,G4s Cash Solutions (Uk) Ltd,04290V
Gloucester City Council,23UE,City Museum And Art Gallery,LM200,Security Services Fees,5351,Services January 2016,17/12/2015,412166,92.47,NET,G4s Cash Solutions (Uk) Ltd,04290V
Gloucester City Council,23UE,Civica Contract Revs & Bens,RT250,Contracted Services,6970,Revenues & Benefits Service January 16,17/12/2015,412139,137322.7,NET,Civica Uk Ltd,10841X
Gloucester City Council,23UE,Client Revs & Bens Contract,RT240,Bailiffs Fees,5368,VAT on fees collected,17/12/2015,412106,0,NET,Phoenix Commercial Collections Ltd,13435J
Gloucester City Council,23UE,Client Revs & Bens Contract,RT240,Bailiffs Fees,5368,VAT on fees collected,17/12/2015,412107,0,NET,Phoenix Commercial Collections Ltd,13435J
Gloucester City Council,23UE,Client Revs & Bens Contract,RT240,Fees For Services Received,5350,CRN2015/G07 Universal Credit Implementation,17/12/2015,412096,7204.2,NET,Civica Uk Ltd,10841X
Gloucester City Council,23UE,Council Streetcare Team,HI101,General Repair/Maint Buildings,3000,St James Park repairs,17/12/2015,412097,398,NET,Greenfields Garden Services Ltd,48130G
Gloucester City Council,23UE,Council Streetcare Team,HI101,Maint Of Grounds - General,3030,Grounds Maintenance Contribution 1516,17/12/2015,412151,5100,NET,Quedgeley Parish Council,48506G
Gloucester City Council,23UE,Council Streetcare Team,HI101,Maint Of Grounds - General,3030,Litter Collection Contribution 1516,17/12/2015,412152,6000,NET,Quedgeley Parish Council,48506G
Gloucester City Council,23UE,Countryside Unit,LP201,Tyres,4014,tyres,17/12/2015,412100,94.24,NET,A T S Euromaster Ltd,01860B
Gloucester City Council,23UE,Crematorium,HC200,Memorial Plaques,5053,Plaques,17/12/2015,412145,258,NET,Arkell & Hurcombe,59812T
Gloucester City Council,23UE,Crematorium,HC200,Memorial Plaques,5053,Plaques,17/12/2015,412148,54,NET,Arkell & Hurcombe,59812T
Gloucester City Council,23UE,Docks Complex - Services,RB100,Security Services Fees,5351,Amendments,17/12/2015,412167,5.84,NET,G4s Cash Solutions (Uk) Ltd,04290V
Gloucester City Council,23UE,Docks Complex - Services,RB100,Security Services Fees,5351,Cash Processed November 2015,17/12/2015,412160,3.53,NET,G4s Cash Solutions (Uk) Ltd,04290V
Gloucester City Council,23UE,Docks Complex - Services,RB100,Security Services Fees,5351,Services January 2016,17/12/2015,412166,276.2,NET,G4s Cash Solutions (Uk) Ltd,04290V
Gloucester City Council,23UE,Docks Complex - Services,RB100,Service Charges,3020,CITY MUSEUM,17/12/2015,409066,144,NET,Angel Springs Ltd,05491X
Gloucester City Council,23UE,Docks Complex - Services,RB100,Service Charges,3020,FOLK MUSEUM,17/12/2015,409067,144,NET,Angel Springs Ltd,05491X
Gloucester City Council,23UE,Equalities,EH102,Reimbursements,9100,Spray Paint,17/12/2015,412153,75,NET,Upfest,15828P
Gloucester City Council,23UE,Events,LT410,Events,5952,Security Guards,17/12/2015,412165,1168,NET,Nsgl Ltd,15246Y
Gloucester City Council,23UE,Folk Museum,LM210,Security Services Fees,5351,Services January 2016,17/12/2015,412166,92.47,NET,G4s Cash Solutions (Uk) Ltd,04290V
Gloucester City Council,23UE,Gloucester Guildhall,LA100,Security Services Fees,5351,Services January 2016,17/12/2015,412166,92.47,NET,G4s Cash Solutions (Uk) Ltd,04290V
Gloucester City Council,23UE,Green Garden Waste,HI105,Fees For Services Received,5350,Garden Waste Mailings,17/12/2015,412138,31500,NET,Civica Uk Ltd,10841X
Gloucester City Council,23UE,REDACTED,REDACTED,REDACTED,REDACTED,REDACTED,17/12/2015,REDACTED,90,NET,REDACTED,REDACTED
Gloucester City Council,23UE,REDACTED,REDACTED,REDACTED,REDACTED,REDACTED,17/12/2015,REDACTED,552.85,NET,REDACTED,REDACTED
Gloucester City Council,23UE,REDACTED,REDACTED,REDACTED,REDACTED,REDACTED,17/12/2015,REDACTED,100,NET,REDACTED,REDACTED
Gloucester City Council,23UE,REDACTED,REDACTED,REDACTED,REDACTED,REDACTED,17/12/2015,REDACTED,107.77,NET,REDACTED,REDACTED
Gloucester City Council,23UE,REDACTED,REDACTED,REDACTED,REDACTED,REDACTED,17/12/2015,REDACTED,420,NET,REDACTED,REDACTED
Gloucester City Council,23UE,REDACTED,REDACTED,REDACTED,REDACTED,REDACTED,17/12/2015,REDACTED,588.52,NET,REDACTED,REDACTED
Gloucester City Council,23UE,REDACTED,REDACTED,REDACTED,REDACTED,REDACTED,17/12/2015,REDACTED,368.2,NET,REDACTED,REDACTED
Gloucester City Council,23UE,Homelessness Prevention,CH122,Fees For Services Received,5350,Deposit,17/12/2015,412202,400,NET,Surelet,06858N
Gloucester City Council,23UE,REDACTED,REDACTED,REDACTED,REDACTED,REDACTED,17/12/2015,REDACTED,400,NET,REDACTED,REDACTED
Gloucester City Council,23UE,REDACTED,REDACTED,REDACTED,REDACTED,REDACTED,17/12/2015,REDACTED,1000,NET,REDACTED,REDACTED
Gloucester City Council,23UE,Off Street Car Parks,PP110,Rents,3200,Rent in Advance,17/12/2015,412136,46250,NET,Colliers International,15540S
Gloucester City Council,23UE,Programme Of Works Cem&Crem,HY045,Contract Payments,0020,Various Items,17/12/2015,412168,34778.95,CAP,Facultatieve Technologies Ltd,51210H
Gloucester City Council,23UE,Rugby World Cup,LT450,Fees For Services Received,5350,Event Toilet Hire,17/12/2015,412132,160,NET,B & W Hire Ltd,55477Y
Gloucester City Council,23UE,Rugby World Cup,LT450,Fees For Services Received,5350,Event Toilet Hire,17/12/2015,412133,160,NET,B & W Hire Ltd,55477Y
Gloucester City Council,23UE,Rugby World Cup,LT450,Fees For Services Received,5350,Event Toilet Hire,17/12/2015,412134,160,NET,B & W Hire Ltd,55477Y
Gloucester City Council,23UE,Rugby World Cup,LT450,Fees For Services Received,5350,Event Toilet Hire,17/12/2015,412135,160,NET,B & W Hire Ltd,55477Y
Gloucester City Council,23UE,Theatre Tokens,LT106,Materials For Sale,5080,Sales November 2015,17/12/2015,412159,50,NET,Society Of London Theatre,05656Z
Gloucester City Council,23UE,Theatre Tokens,LT106,Sale Of Goods And Services,9230,Sales November 2015,17/12/2015,412159,-2.5,NET,Society Of London Theatre,05656Z
Gloucester City Council,23UE,Tourism Marketing,LT100,Security Services Fees,5351,Services January 2016,17/12/2015,412166,92.47,NET,G4s Cash Solutions (Uk) Ltd,04290V
Gloucester City Council,23UE,Vehicles,RS140,Fuel,4012,VEHICLE FUEL,17/12/2015,412004,151.21,NET,Allstar Business Solutions Ltd (Arval),06594A
Gloucester City Council,23UE,Cemeteries,HC300,Operational Materials,5070,Various Items,18/12/2015,412169,77.45,NET,Millington & Ramstedt Ltd,29815S
Gloucester City Council,23UE,Cemeteries,HC300,Operational Materials,5070,Various Items,18/12/2015,412170,223,NET,Millington & Ramstedt Ltd,29815S
Gloucester City Council,23UE,Cemeteries,HC300,Trade Refuse Tipping Fees,6297,Exchange,18/12/2015,411666,320,NET,Allstone Sand & Gravel Aggregates Ltd,00940M
Gloucester City Council,23UE,Cemeteries,HC300,Trade Refuse Tipping Fees,6297,Skips,18/12/2015,411667,790,NET,Allstone Sand & Gravel Aggregates Ltd,00940M
Gloucester City Council,23UE,City Museum And Art Gallery,LM200,Exhibits And Collections,5038,transport of artwork,18/12/2015,412244,980,NET,Art Works Exhibition Services Ltd,14429U
Gloucester City Council,23UE,Civica Contract Revs & Bens,RT250,Contracted Services,6970,pension charges OCT15,18/12/2015,411235,12177.69,NET,Civica Uk Ltd,10841X
Gloucester City Council,23UE,Civica It Contract,RT270,Contracted Services,6970,Pension charges OCT15,18/12/2015,411236,791.05,NET,Civica Uk Ltd,10841X
Gloucester City Council,23UE,Council Streetcare Team,HI101,Maint Of Grounds - General,3030,Various Items,18/12/2015,412162,64.39,NET,Angell Pets Ltd,15773P
Gloucester City Council,23UE,Countryside Unit,LP201,General Repair/Maint Buildings,3000,post box & metal paint,18/12/2015,412242,31.32,NET,Screwfix Direct,54672H
Gloucester City Council,23UE,Countryside Unit,LP201,Maint Of Grounds - General,3030,wire & stakes,18/12/2015,412248,237.11,NET,Forest Products Ltd,08155N
Gloucester City Council,23UE,Countryside Unit,LP201,Routine R And M - Vehicles,4011,Jockey wheel,18/12/2015,412247,56,NET,Ross Farm Machinery,02153B
Gloucester City Council,23UE,Crematorium,HC200,Maint Of Grounds - General,3030,Various Items,18/12/2015,412170,596,NET,Millington & Ramstedt Ltd,29815S
Gloucester City Council,23UE,Economic Development,FP300,Business Grant,7116,rent grant,18/12/2015,412240,1500,NET,African Experience Restaurant,16138P
Gloucester City Council,23UE,General Drainage Works,PY241,Contract Payments,0020,"Twyver, St Oswalds",18/12/2015,412127,750,CAP,Greenfields Garden Services Ltd,48130G
Gloucester City Council,23UE,REDACTED,REDACTED,REDACTED,REDACTED,REDACTED,18/12/2015,REDACTED,100,NET,REDACTED,REDACTED
Gloucester City Council,23UE,REDACTED,REDACTED,REDACTED,REDACTED,REDACTED,18/12/2015,REDACTED,270,NET,REDACTED,REDACTED
Gloucester City Council,23UE,Homelessness,CH120,Board And Lodging,5515,Emergency accommodation fees 14/11/15,18/12/2015,412091,169.17,NET,Gloucestershire County Council,18650D
Gloucester City Council,23UE,Nms Contract,HI102,Additional Non-Tender Items,6973,Tri Signs,18/12/2015,412113,531,NET,Alpha Graphics,03471Y
Gloucester City Council,23UE,Pest Control,HD400,Fees For Services Received,5350,Pest control services,18/12/2015,412239,5058.23,NET,Falconry Services Ltd,10692P
Gloucester City Council,23UE,Public Health,HD200,Other Minor Supplies Services,5590,Grant December 2015,18/12/2015,412205,500,NET,Gl Communities,09535X
Gloucester City Council,23UE,Ranger Centre/Netheridge Wks,RY167,Contract Payments,0020,"Topo Survey, Savernake Road",18/12/2015,412128,445,CAP,Monument Geomatics,11065F
Gloucester City Council,23UE,Shopmobility,PE200,Hospitality,5122,August 15 Room Booking,18/12/2015,412249,49.5,NET,Aspire Sports & Cultural Trust,08135V
Gloucester City Council,23UE,REDACTED,REDACTED,REDACTED,REDACTED,REDACTED,18/12/2015,REDACTED,540,NET,REDACTED,REDACTED
Gloucester City Council,23UE,REDACTED,REDACTED,REDACTED,REDACTED,REDACTED,18/12/2015,REDACTED,-1.35,NET,REDACTED,REDACTED
Gloucester City Council,23UE,REDACTED,REDACTED,REDACTED,REDACTED,REDACTED,18/12/2015,REDACTED,-45,NET,REDACTED,REDACTED
Gloucester City Council,23UE,Asset Management,RS300,Basic Pay - Temporary Staff,2751,Engineer Services November 2015,21/12/2015,412253,4912.9,NET,Ecostep Ltd,15511Z
Gloucester City Council,23UE,Asset Management,RS300,Basic Pay - Temporary Staff,2751,Engineer Services October 2015,21/12/2015,412252,4786.65,NET,Ecostep Ltd,15511Z
Gloucester City Council,23UE,Cemeteries,HC300,Basic Pay - Temporary Staff,2751,temporary staff,21/12/2015,411672,439.88,NET,Premiere Employment Group Ltd,55468Z
Gloucester City Council,23UE,Christmas Lights,GY006,Contract Payments,0020,Christmas lights,21/12/2015,410700,2668.96,CAP,Blachere Illuminations Uk Ltd,15818T
Gloucester City Council,23UE,Christmas Lights,GY006,Contract Payments,0020,Christmas lights,21/12/2015,411707,6130.92,CAP,Blachere Illuminations Uk Ltd,15818T
Gloucester City Council,23UE,Contact Centre,RB300,Basic Pay - Temporary Staff,2751,temporary staff w/e 13/12/15,21/12/2015,412246,720,NET,Morgan Hunt Uk Ltd,04451S
Gloucester City Council,23UE,Countryside Unit,LP201,Routine R And M - Vehicles,4011,wheel clamp & hitch lock,21/12/2015,412243,74.96,NET,Screwfix Direct,54672H
Gloucester City Council,23UE,REDACTED,REDACTED,REDACTED,REDACTED,REDACTED,21/12/2015,REDACTED,88,NET,REDACTED,REDACTED
Gloucester City Council,23UE,Economic Development,FP300,Business Grant,7116,Broadband connection voucher scheme,21/12/2015,412250,8850,NET,Connexus Networks Ltd,16133A
Gloucester City Council,23UE,Economic Development,FP300,Business Grant,7116,broadband voucher,21/12/2015,412312,395,NET,Focus 4 U Ltd,16178B
Gloucester City Council,23UE,Gloucester Guildhall,LA100,General Repair/Maint Buildings,3000,Guildhall Lighting Grid measured survey,21/12/2015,412099,75,NET,Anthony Brookes Surveys Limited,16203E
Gloucester City Council,23UE,REDACTED,REDACTED,REDACTED,REDACTED,REDACTED,21/12/2015,REDACTED,515,NET,REDACTED,REDACTED
Gloucester City Council,23UE,Grants To Voluntary Sector,FG100,Abcd Grants,7100A,Room Hire,21/12/2015,412254,454,NET,The Friendship Cafe Ltd,14853A
Gloucester City Council,23UE,Guildhall Bar And Caf�,LA210,Catering Provisions -Food,5110,food,21/12/2015,411248,57.9,NET,Janes Pantry,24500W
Gloucester City Council,23UE,REDACTED,REDACTED,REDACTED,REDACTED,REDACTED,21/12/2015,REDACTED,1000,NET,REDACTED,REDACTED
Gloucester City Council,23UE,REDACTED,REDACTED,REDACTED,REDACTED,REDACTED,21/12/2015,REDACTED,110,NET,REDACTED,REDACTED
Gloucester City Council,23UE,REDACTED,REDACTED,REDACTED,REDACTED,REDACTED,21/12/2015,REDACTED,183.5,NET,REDACTED,REDACTED
Gloucester City Council,23UE,Homelessness Prevention,CH122,Basic Pay - Temporary Staff,2751,temporary staff w/e 13/12/15,21/12/2015,412311,645,NET,Greenacre Recruitment Ltd,15817V
Gloucester City Council,23UE,Homelessness Prevention,CH122,Fees For Services Received,5350,REDACTED,21/12/2015,412304,495,NET,Henderson Connellan Ltd,16069H
Gloucester City Council,23UE,Human Resources,EH100,Fees For Services Received,5350,VAT only on payroll charges sept 15,21/12/2015,412271,0,NET,Gloucestershire County Council,18650D
Gloucester City Council,23UE,Investment Property,RB500,General Repair/Maint Buildings,3000,NOVEMBER MTC CLAIMS,21/12/2015,412299,24348,NET,Rf Gardiner Limited,12299B
Gloucester City Council,23UE,Investment Property,RB500,Repair/Maint Of Fixed Plant,3006,Blackfriars Priory MTC works NOV15,21/12/2015,412315,377.5,NET,Axiom Building Services,14908A
Gloucester City Council,23UE,Investment Property,RB500,Repair/Maint Of Fixed Plant,3006,City Museum MTC works 1/12/15,21/12/2015,412314,774.19,NET,Axiom Building Services,14908A
Gloucester City Council,23UE,Investment Property,RB500,Repair/Maint Of Fixed Plant,3006,City Musum MTC works 2DEC15,21/12/2015,412316,68,NET,Axiom Building Services,14908A
Gloucester City Council,23UE,Investment Property,RB500,Repair/Maint Of Fixed Plant,3006,HKP MTC works 10DEC15,21/12/2015,412318,212.28,NET,Axiom Building Services,14908A
Gloucester City Council,23UE,Investment Property,RB500,Repair/Maint Of Fixed Plant,3006,TIC MTC works NOV15,21/12/2015,412317,283.59,NET,Axiom Building Services,14908A
Gloucester City Council,23UE,Nms Contract,HI102,Contracted Services,6970,pension recharge November 2015,21/12/2015,412237,10469.07,NET,Enterprise (Aol) Ltd,06695G
Gloucester City Council,23UE,Rehousing,CH111,Fees For Services Received,5350,Medical Report,21/12/2015,412260,20.5,NET,Saintbridge Surgery,58374F
Gloucester City Council,23UE,Rehousing,CH111,Fees For Services Received,5350,Telephone Interpreting,21/12/2015,412261,13.65,NET,Prime Production Ltd,06262F
Gloucester City Council,23UE,REDACTED,REDACTED,REDACTED,REDACTED,REDACTED,21/12/2015,REDACTED,3000,NET,REDACTED,REDACTED
Gloucester City Council,23UE,Tic Trading,LT110,Publications For Sale,5064,Rugby World Cup,21/12/2015,412259,214.62,NET,David Whyman Map Sales,02653Z
Gloucester City Council,23UE,Tourism Marketing,LT100,Window Cleaning,3610,Cleaning Services,21/12/2015,412257,42.93,NET,Interserve Fs (Uk) Limited,00442K
Gloucester City Council,23UE,Tourism Marketing,LT100,Window Cleaning,3610,Window Cleaning,21/12/2015,412258,12,NET,Interserve Fs (Uk) Limited,00442K
Gloucester City Council,23UE,Advance City Attractions,LT109,Materials For Sale,5080,tickets sold on commission,22/12/2015,412371,38.73,NET,West Midlands Safari & Leisure Park,10891F
Gloucester City Council,23UE,Advance City Attractions,LT109,Sale Of Goods And Services,9230,tickets sold on commission,22/12/2015,412371,-6.67,NET,West Midlands Safari & Leisure Park,10891F
Gloucester City Council,23UE,Allotments,HI104,Fees For Services Received,5350,Innsworth Lane Allotments,22/12/2015,412118,850,NET,Greenfields Garden Services Ltd,48130G
Gloucester City Council,23UE,Building Control,PT400,Fees For Services Received,5350,April 2015,22/12/2015,411412,62511.07,NET,Stroud District Council,42500D
Gloucester City Council,23UE,Business Transformation & Tech,RT700,Computer Software <5000,5425,SAP Business Objects,22/12/2015,412386,4488.42,NET,Software Box Ltd,14185D
Gloucester City Council,23UE,Business Transformation & Tech,RT700,Internet Service Provider Fees,5429,Blueyonder Dec 15- Jan 16,22/12/2015,411050,80,NET,Virgin Media Payments Ltd,09376J
Gloucester City Council,23UE,Business Transformation & Tech,RT700,Internet Service Provider Fees,5429,Charges Nov - Dec 2015,22/12/2015,410586,80,NET,Virgin Media Payments Ltd,09376J
Gloucester City Council,23UE,Cemeteries,HC300,Routine R And M - Vehicles,4011,chainsaw service,22/12/2015,412359,73.2,NET,Garden Machinery Gloucester,55641K
Gloucester City Council,23UE,Cemeteries,HC300,Routine R And M - Vehicles,4011,fit wheel to J Deere,22/12/2015,412357,30,NET,Garden Machinery Gloucester,55641K
Gloucester City Council,23UE,Cemeteries,HC300,Routine R And M - Vehicles,4011,Frame & signs,22/12/2015,412426,183.16,NET,T H White Ltd,08413P
Gloucester City Council,23UE,Cemeteries,HC300,Routine R And M - Vehicles,4011,J Deere electrical fault repair,22/12/2015,412356,175,NET,Garden Machinery Gloucester,55641K
Gloucester City Council,23UE,Cemeteries,HC300,Routine R And M - Vehicles,4011,petrol hedgecutter service,22/12/2015,412355,105.92,NET,Garden Machinery Gloucester,55641K
Gloucester City Council,23UE,Cemeteries,HC300,Routine R And M - Vehicles,4011,service of ransomes Parkway 2250,22/12/2015,412358,684.39,NET,Garden Machinery Gloucester,55641K
Gloucester City Council,23UE,City Museum Catering,LM202,Catering Provisions -Food,5110,Food,22/12/2015,412421,140.01,NET,Woodward Foodservice,10714F
Gloucester City Council,23UE,City Museum Catering,LM202,Catering Provisions -Food,5110,Food,22/12/2015,412427,110.24,NET,Woodward Foodservice,10714F
Gloucester City Council,23UE,City Museum Catering,LM202,Catering Provisions -Food,5110,Milk,22/12/2015,412401,6.9,NET,Total Produce Gloucester,12645E
Gloucester City Council,23UE,City Museum Catering,LM202,Catering Provisions -Food,5110,Milk,22/12/2015,412402,4.6,NET,Total Produce Gloucester,12645E
Gloucester City Council,23UE,City Museum Catering,LM202,Catering Provisions -Food,5110,Milk,22/12/2015,412403,4.6,NET,Total Produce Gloucester,12645E
Gloucester City Council,23UE,City Museum Catering,LM202,Catering Provisions -Food,5110,Milk,22/12/2015,412404,4.6,NET,Total Produce Gloucester,12645E
Gloucester City Council,23UE,City Museum Catering,LM202,Catering Provisions -Food,5110,Milk,22/12/2015,412405,6.9,NET,Total Produce Gloucester,12645E
Gloucester City Council,23UE,City Museum Catering,LM202,Catering Provisions -Food,5110,Milk,22/12/2015,412406,6.9,NET,Total Produce Gloucester,12645E
Gloucester City Council,23UE,City Museum Catering,LM202,Catering Provisions -Food,5110,Milk,22/12/2015,412407,4.6,NET,Total Produce Gloucester,12645E
Gloucester City Council,23UE,Client Revs & Bens Contract,RT240,Subscriptions,5600,Rating & Valuation Reporter JAN-DEC 2015,22/12/2015,412090,720,NET,Rating Publishers Ltd,49604W
Gloucester City Council,23UE,Contact Centre,RB300,Publications,5060,November 15 newspapers,22/12/2015,412387,150.75,NET,Ymk Supermarket,55281U
Gloucester City Council,23UE,Contact Centre,RB300,Stationery,5302,A4 paper,22/12/2015,412388,451,NET,Premier Paper Group Ltd,09166Y
Gloucester City Council,23UE,Council Streetcare Team,HI101,Maint Of Grounds - General,3030,Bulk Feed Sacks,22/12/2015,412399,36.82,NET,Angell Pets Ltd,15773P
Gloucester City Council,23UE,Crematorium,HC200,Maint Of Grounds - General,3030,Lavender x 40,22/12/2015,412059,100,NET,Genus Softworks Ltd,12320N
Gloucester City Council,23UE,Crematorium,HC200,Memorial Plaques,5053,sanctum tablet,22/12/2015,412241,106.5,NET,The Columbaria Company,55078T
Gloucester City Council,23UE,Disabled Facilities Grants,CY013,Disabled Facility Grants,0074,Disables Facilities Grant MDF5146,22/12/2015,412346,5723.45,CAP,Mears Home Improvement Ltd,00096G
Gloucester City Council,23UE,REDACTED,REDACTED,REDACTED,REDACTED,REDACTED,22/12/2015,REDACTED,225,CAP,REDACTED,REDACTED
Gloucester City Council,23UE,REDACTED,REDACTED,REDACTED,REDACTED,REDACTED,22/12/2015,REDACTED,815,CAP,REDACTED,REDACTED
Gloucester City Council,23UE,REDACTED,REDACTED,REDACTED,REDACTED,REDACTED,22/12/2015,REDACTED,3268.28,CAP,REDACTED,REDACTED
Gloucester City Council,23UE,Docks Complex - Services,RB100,Operational Equipment <5000,5012,card holders etc,22/12/2015,412353,178,NET,Bannerbridge Plc,13703G
Gloucester City Council,23UE,Events,LT410,Events,5952,Crowd Control Barriers,22/12/2015,412398,818,NET,Show Services Group Ltd,56329F
Gloucester City Council,23UE,Guildhall Bar And Caf�,LA210,Catering Provisions -Food,5110,coffee,22/12/2015,412378,147.63,NET,Ethical Addictions Ltd,11654N
Gloucester City Council,23UE,Guildhall Bar And Caf�,LA210,Catering Provisions -Food,5110,food,22/12/2015,412367,27.7,NET,Janes Pantry,24500W
Gloucester City Council,23UE,Guildhall Bar And Caf�,LA210,Catering Provisions -Food,5110,Food,22/12/2015,412420,141.53,NET,Woodward Foodservice,10714F
Gloucester City Council,23UE,Guildhall Bar And Caf�,LA210,Catering Provisions -Food,5110,Fruit & Veg November 2015,22/12/2015,412400,138.83,NET,Woody'S Fruit & Veg,11798L
Gloucester City Council,23UE,Guildhall Bar And Caf�,LA210,Catering Provisions -Food,5110,ice cream for Guildhall,22/12/2015,412377,72,NET,Winstones Ice Cream Ltd,56347D
Gloucester City Council,23UE,Guildhall Bar And Caf�,LA210,Catering Provisions -Food,5110,Milk,22/12/2015,412408,4.6,NET,Total Produce Gloucester,12645E
Gloucester City Council,23UE,Guildhall Bar And Caf�,LA210,Catering Provisions -Food,5110,Milk,22/12/2015,412409,4.6,NET,Total Produce Gloucester,12645E
Gloucester City Council,23UE,Guildhall Bar And Caf�,LA210,Catering Provisions -Food,5110,Milk,22/12/2015,412410,4.6,NET,Total Produce Gloucester,12645E
Gloucester City Council,23UE,Guildhall Bar And Caf�,LA210,Catering Provisions -Food,5110,Milk,22/12/2015,412411,4.6,NET,Total Produce Gloucester,12645E
Gloucester City Council,23UE,Guildhall Bar And Caf�,LA210,Catering Provisions -Food,5110,Milk,22/12/2015,412412,4.6,NET,Total Produce Gloucester,12645E
Gloucester City Council,23UE,Guildhall Bar And Caf�,LA210,Catering Provisions -Food,5110,Milk,22/12/2015,412413,4.6,NET,Total Produce Gloucester,12645E
Gloucester City Council,23UE,Guildhall Bar And Caf�,LA210,Catering Provisions -Food,5110,Milk,22/12/2015,412414,4.6,NET,Total Produce Gloucester,12645E
Gloucester City Council,23UE,Guildhall Bar And Caf�,LA210,Catering Provisions -Food,5110,Milk,22/12/2015,412415,4.6,NET,Total Produce Gloucester,12645E
Gloucester City Council,23UE,Guildhall Bar And Caf�,LA210,Catering Provisions -Food,5110,Milk,22/12/2015,412416,4.6,NET,Total Produce Gloucester,12645E
Gloucester City Council,23UE,Guildhall Bar And Caf�,LA210,Catering Provisions -Food,5110,Milk,22/12/2015,412417,4.6,NET,Total Produce Gloucester,12645E
Gloucester City Council,23UE,Guildhall Bar And Caf�,LA210,Catering Provisions -Food,5110,Milk,22/12/2015,412418,4.6,NET,Total Produce Gloucester,12645E
Gloucester City Council,23UE,Guildhall Bar And Caf�,LA210,Catering Provisions -Food,5110,Milk,22/12/2015,412419,4.6,NET,Total Produce Gloucester,12645E
Gloucester City Council,23UE,Guildhall Bar And Caf�,LA210,Catering Provisions -Liquor,5111,drinks,22/12/2015,412379,1196.1,NET,Cellar Supplies Cheltenham Ltd,01563L
Gloucester City Council,23UE,Guildhall Bar And Caf�,LA210,Hire Of Equipment,5020,catering equipment,22/12/2015,412374,80.53,NET,Nisbets,55372P
Gloucester City Council,23UE,REDACTED,REDACTED,REDACTED,REDACTED,REDACTED,22/12/2015,REDACTED,58.34,NET,REDACTED,REDACTED
Gloucester City Council,23UE,REDACTED,REDACTED,REDACTED,REDACTED,REDACTED,22/12/2015,REDACTED,203.12,NET,REDACTED,REDACTED
Gloucester City Council,23UE,REDACTED,REDACTED,REDACTED,REDACTED,REDACTED,22/12/2015,REDACTED,950,NET,REDACTED,REDACTED
Gloucester City Council,23UE,REDACTED,REDACTED,REDACTED,REDACTED,REDACTED,22/12/2015,REDACTED,140,NET,REDACTED,REDACTED
Gloucester City Council,23UE,REDACTED,REDACTED,REDACTED,REDACTED,REDACTED,22/12/2015,REDACTED,6218.1,CAP,REDACTED,REDACTED
Gloucester City Council,23UE,REDACTED,REDACTED,REDACTED,REDACTED,REDACTED,22/12/2015,REDACTED,210,CAP,REDACTED,REDACTED
Gloucester City Council,23UE,Housing Works In Default,HD500,Clearance And Cleansing Fees,5384,"Erect fence adj Bowling Club, Barnwood",22/12/2015,412392,1775,NET,Rj Contracting (Environmental) Ltd,07429H
Gloucester City Council,23UE,Human Resources,EH100,Fees For Services Received,5350,Payroll Monthly Charges,22/12/2015,411675,2691.27,NET,Gloucestershire County Council,18650D
Gloucester City Council,23UE,Internal Communications,RC430,Fees For Services Received,5350,staff funding 2015/16,22/12/2015,412396,14912.25,NET,Marketing Gloucester Ltd,08925E
Gloucester City Council,23UE,Marchants,LT108,Materials For Sale,5080,sales of tickets NOV15,22/12/2015,412370,1772,NET,Marchants Coaches Ltd,48151Y
Gloucester City Council,23UE,Marketing Gloucester Charges,RC433,Fees For Services Received,5350,Q4 funding 2015-16,22/12/2015,412395,43662.5,NET,Marketing Gloucester Ltd,08925E
Gloucester City Council,23UE,Museum Phase 2 Hlf,GY001,Contract Payments,0020,Business support grant,22/12/2015,412376,45,CAP,Darcy And Eliza Vintage Hire,16127V
Gloucester City Council,23UE,Nms Contract,HI102,Fees For Services Received,5350,SEPT & OCT 15 services,22/12/2015,412385,1398.14,NET,Somerset County Council,15963G
Gloucester City Council,23UE,REDACTED,REDACTED,REDACTED,REDACTED,REDACTED,22/12/2015,REDACTED,304.74,NET,REDACTED,REDACTED
Gloucester City Council,23UE,Organisational Health,RC160,Fees For Services Received,5350,OH & Jobscreen services,22/12/2015,412363,224.17,NET,Industrial Medical & Safety Services Ltd,10668L
Gloucester City Council,23UE,Retail Market - Landlord,HM300,Sewerage And Environ Charges,3402,Clearing parking area of unwanted items,22/12/2015,412383,300,NET,Cotswold Chic Ltd,16213B
Gloucester City Council,23UE,Retail Market - Landlord,HM300,Sewerage And Environ Charges,3402,DEC15 two monthly service,22/12/2015,412389,180,NET,Eezeeflow Drain Services,11587C
Gloucester City Council,23UE,Tic Rovercard Sales,LT101,Materials For Sale,5080,Agents Return Oct - Nov 2015,22/12/2015,412255,5207,NET,Stagecoach Services Ltd,56554W
Gloucester City Council,23UE,Tic Rovercard Sales,LT101,Sale Of Goods And Services,9230,Agents Return Oct - Nov 2015,22/12/2015,412255,-433.92,NET,Stagecoach Services Ltd,56554W
Gloucester City Council,23UE,REDACTED,REDACTED,REDACTED,REDACTED,REDACTED,22/12/2015,REDACTED,344.7,NET,REDACTED,REDACTED
Gloucester City Council,23UE,REDACTED,REDACTED,REDACTED,REDACTED,REDACTED,22/12/2015,REDACTED,-28.73,NET,REDACTED,REDACTED
Gloucester City Council,23UE,REDACTED,REDACTED,REDACTED,REDACTED,REDACTED,22/12/2015,REDACTED,1174.8,CAP,REDACTED,REDACTED
Gloucester City Council,23UE,Training Schemes,ET100,Vocational Training,2970,NVQ assessments,22/12/2015,412372,1340,NET,The Gold Standard,56141C
Gloucester City Council,23UE,Blackfriars,LA609,Hire Of Equipment,5020,hire of tables & chairs,23/12/2015,412506,411.75,NET,Valley Furniture Hire Ltd,08324P
Gloucester City Council,23UE,Cemeteries,HC300,Routine R And M - Vehicles,4011,chainsaw repairs,23/12/2015,412511,52.65,NET,Garden Machinery Gloucester,55641K
Gloucester City Council,23UE,Cemeteries,HC300,Routine R And M - Vehicles,4011,digger repairs,23/12/2015,412510,30,NET,Garden Machinery Gloucester,55641K
Gloucester City Council,23UE,Client Revs & Bens Contract,RT240,Bailiffs Fees,5368,VAT only invoice,23/12/2015,412362,0,NET,Bristow & Sutor,05450M
Gloucester City Council,23UE,Community Safety Projects,FP500,Hospitality,5122,room hire Public Protection,23/12/2015,412482,47,NET,Aspire Sports & Cultural Trust,08135V
Gloucester City Council,23UE,Contact Centre,RB300,Other Minor Supplies Services,5590,JAN16 facility fee,23/12/2015,412364,237.57,NET,Office Response,09439K
Gloucester City Council,23UE,Contact Centre,RB300,Stationery,5302,stationery,23/12/2015,412484,14.27,NET,Lyreco Uk Ltd,11746G
Gloucester City Council,23UE,Council Streetcare Team,HI101,Signs / Nameplates,3039,Calton Road nameplate,23/12/2015,412424,76.68,NET,Enterprise (Aol) Ltd,06695G
Gloucester City Council,23UE,Crematorium,HC200,Memorial Plaques,5053,bronze markers,23/12/2015,412520,50,NET,Arkell & Hurcombe,59812T
Gloucester City Council,23UE,Crematorium,HC200,Memorial Plaques,5053,bronze plaque,23/12/2015,412515,58,NET,Arkell & Hurcombe,59812T
Gloucester City Council,23UE,Crematorium,HC200,Memorial Plaques,5053,bronze plaque,23/12/2015,412517,64,NET,Arkell & Hurcombe,59812T
Gloucester City Council,23UE,Crematorium,HC200,Memorial Plaques,5053,bronze plaques,23/12/2015,412516,102,NET,Arkell & Hurcombe,59812T
Gloucester City Council,23UE,Crematorium,HC200,Memorial Plaques,5053,bronze plaques,23/12/2015,412518,348,NET,Arkell & Hurcombe,59812T
Gloucester City Council,23UE,Crematorium,HC200,Memorial Plaques,5053,bronze plaques,23/12/2015,412519,306,NET,Arkell & Hurcombe,59812T
Gloucester City Council,23UE,Crematorium,HC200,Memorial Plaques,5053,plaque,23/12/2015,412500,190,NET,Steel & Stone (York),57204U
Gloucester City Council,23UE,Docks Complex - Services,RB100,General Repair/Maint Buildings,3000,full clean SVP pipework,23/12/2015,412485,605,NET,Three Counties Drain Service,44033V
Gloucester City Council,23UE,Docks Complex - Services,RB100,General Repair/Maint Buildings,3000,investigate blocked SVP,23/12/2015,412508,230,NET,Three Counties Drain Service,44033V
Gloucester City Council,23UE,Docks Complex - Services,RB100,Service Charges,3020,Docks service charge JAN-MAR16,23/12/2015,412384,13936,NET,Gloucester Quays Management Ltd,13497K
Gloucester City Council,23UE,Docks Complex - Services,RB100,Service Charges,3020,Rental for 3 months,23/12/2015,412274,48.75,NET,Wessex Products (Leasing) Ltd,03684C
Gloucester City Council,23UE,Grants To Voluntary Sector,FG100,Grants,7100C,EVENTS GRANT 2015/15,23/12/2015,412525,407,NET,Gloucestershire Chinese Resource Centre,11643U
Gloucester City Council,23UE,Homelessness,CH120,Basic Pay - Holding Account,1551,temoprary storage charges Nov-Dec15,23/12/2015,412499,177.43,NET,Advanced Removals & Storage Ltd,57142R
Gloucester City Council,23UE,REDACTED,REDACTED,REDACTED,REDACTED,REDACTED,23/12/2015,REDACTED,489.44,NET,REDACTED,REDACTED
Gloucester City Council,23UE,REDACTED,REDACTED,REDACTED,REDACTED,REDACTED,23/12/2015,REDACTED,368.2,NET,REDACTED,REDACTED
Gloucester City Council,23UE,REDACTED,REDACTED,REDACTED,REDACTED,REDACTED,23/12/2015,REDACTED,530,NET,REDACTED,REDACTED
Gloucester City Council,23UE,REDACTED,REDACTED,REDACTED,REDACTED,REDACTED,23/12/2015,REDACTED,400,NET,REDACTED,REDACTED
Gloucester City Council,23UE,Horsbere Brook Planting Ea,LY147,Legal/Survey Fees -Land,0002,tree guards,23/12/2015,412513,182.95,CAP,Maxwell Amenity Ltd,00960F
Gloucester City Council,23UE,Housing Works In Default,HD500,Clearance And Cleansing Fees,5384,Barnwood Road undergrowth clearance,23/12/2015,412393,350,NET,Rj Contracting (Environmental) Ltd,07429H
Gloucester City Council,23UE,Parks Contract Management,LP100,Maint Of Grounds - General,3030,"coupling links, wetpour repair kit",23/12/2015,412423,926.64,NET,Enterprise (Aol) Ltd,06695G
Gloucester City Council,23UE,Perennial Planting Enterprise,LY133,Contract Payments,0020,plants for raised beds,23/12/2015,412425,711.08,CAP,Enterprise (Aol) Ltd,06695G
Gloucester City Council,23UE,Rehousing,CH111,Fees For Services Received,5350,medical report,23/12/2015,412498,20.5,NET,Rosebank Health,03041E
Gloucester City Council,23UE,Rehousing,CH111,Fees For Services Received,5350,medical report,23/12/2015,412497,20.5,NET,Gloucester Health Access Centre,11611H
Gloucester City Council,23UE,Rugby World Cup,LT450,Fees For Services Received,5350,event control work RWC Fanzone,23/12/2015,412524,1600,NET,REDACTED,REDACTED
Gloucester City Council,23UE,Rugby World Cup,LT450,Trade Refuse Collection,3630,Fanzone bin emptying,23/12/2015,412491,1193.96,NET,Enterprise (Aol) Ltd,06695G
Gloucester City Council,23UE,Business Transformation & Tech,RT700,Computer Hardware <5000,5420,Dell Lattitude E5550,,412523,1945.8,NET,Dell Computers Corporation Ltd,55920C
Gloucester City Council,23UE,Business Transformation & Tech,RT700,Computer Software Maintenance,5427,11NOV15-10NOV16 maintenance agreement,,412006,738,NET,Stanford Marsh Ltd,51139M
Gloucester City Council,23UE,Business Transformation & Tech,RT700,Lease Lines,5411,Call charges to 30NOV15 Leased Lines,,411937,4170.33,NET,Gamma Business Communications,10260A
Gloucester City Council,23UE,Business Transformation & Tech,RT700,Mobile Phones,5409,Charges November 2015,,411857,20.12,NET,Everything Everywhere Ltd (T-Mobile),57543S
Gloucester City Council,23UE,Business Transformation & Tech,RT700,Mobile Phones,5409,Charges November 2015,,411858,1181.37,NET,Everything Everywhere Ltd (T-Mobile),57543S
Gloucester City Council,23UE,Business Transformation & Tech,RT700,Mobile Phones,5409,NOV15 charges,,411856,60.41,NET,Everything Everywhere Ltd (T-Mobile),57543S
Gloucester City Council,23UE,Business Transformation & Tech,RT700,Telephones And Fax,5410,call charges to 30/11/15,,411917,2667.45,NET,Gamma Business Communications,10260A
Gloucester City Council,23UE,Bus Station,RB400,General Repair/Maint Buildings,3000,Bus station repairs,,412564,120,NET,Mpl Wrought Iron Llp,03907P
Gloucester City Council,23UE,Cemeteries,HC300,Basic Pay - Temporary Staff,2751,temp staff w/e 13/12/15,,412481,439.88,NET,Premiere Employment Group Ltd,55468Z
Gloucester City Council,23UE,Cemeteries,HC300,Operational Materials,5070,sledgehammer,,412361,18.89,NET,Spaldings,48759Y
Gloucester City Council,23UE,Cemeteries,HC300,Operational Materials,5070,sledgehammer & clawhammer,,412360,41.83,NET,Spaldings,48759Y
Gloucester City Council,23UE,Cemeteries,HC300,Operational Materials,5070,TEAC CD Player,,412119,199,NET,Revolution Multimedia,07880L
Gloucester City Council,23UE,Civica Admin Charges,RT105,Postages,5400,acct 0870585007,,412489,1619.87,NET,Royal Mail S.Wales & South West,35830S
Gloucester City Council,23UE,Client Revs & Bens Contract,RT240,Fees For Services Received,5350,Recharge for Dukes Direct payment,,412238,3035.71,NET,Civica Uk Ltd,10841X
Gloucester City Council,23UE,Contact Centre,RB300,Basic Pay - Temporary Staff,2751,Temporary staff w/e 20/12/15,,412505,720,NET,Morgan Hunt Uk Ltd,04451S
Gloucester City Council,23UE,Contact Centre,RB300,Postages,5400,acct 0252446000 NOV-DEC15,,412559,1607.13,NET,Royal Mail S.Wales & South West,35830S
Gloucester City Council,23UE,Contact Centre,RB300,Printing,5300,STATIONERY,,412577,25.32,NET,Lyreco Uk Ltd,11746G
Gloucester City Council,23UE,Contact Centre,RB300,Stationery,5302,STATIONERY,,412579,3.87,NET,Lyreco Uk Ltd,11746G
Gloucester City Council,23UE,Contact Centre,RB300,Stationery,5302,STATIONERY,,412580,54.48,NET,Lyreco Uk Ltd,11746G
Gloucester City Council,23UE,Contact Centre,RB300,Stationery,5302,STATIONERY,,412581,10.44,NET,Lyreco Uk Ltd,11746G
Gloucester City Council,23UE,Disabled Facilities Grants,CY013,Disabled Facility Grants,0074,DFG MDF5152 FINAL FEE,,412596,4743.65,CAP,Mears Home Improvement Ltd,00096G
Gloucester City Council,23UE,Financial Services,RT200,Fees For Services Received,5350,Broadband voucher,,411555,399,NET,Lister Communications Ltd,15800N
Gloucester City Council,23UE,Financial Services,RT200,Fees For Services Received,5350,Engineer 01/12/2014,,396968,78.5,NET,Asguk (Systems) Ltd,07167R
Gloucester City Council,23UE,Financial Services,RT200,Vocational Training,2970,Spending Review 2015,,412588,150,NET,Lg Futures,11251S
Gloucester City Council,23UE,General Drainage Works,PY241,Contract Payments,0020,St Oswalds River Twyver clearance works,,412560,350,CAP,Rj Contracting (Environmental) Ltd,07429H
Gloucester City Council,23UE,General Drainage Works,PY241,Contract Payments,0020,St Oswalds/Twyver tree works,,412103,750,CAP,Greenfields Garden Services Ltd,48130G
Gloucester City Council,23UE,Grants To Voluntary Sector,FG100,Grants,7100C,Crafty Ladies ABCD Gloucester Grant 2015,,412558,500,NET,Gavca,06129J
Gloucester City Council,23UE,Grants To Voluntary Sector,FG100,Hospitality,5122,refreshments for meeting 14/12/15,,412555,20,NET,The Friendship Cafe Ltd,14853A
Gloucester City Council,23UE,Housing Strategy & Enabling,CH110,Other Minor Supplies Services,5590,energy certificate,,412586,65,NET,Cotswold Energy Consultants Ltd,16164N
Gloucester City Council,23UE,Investment Property,RB500,Advertising And Publicity,5702,"re Woods Orchard, Gloucester",,412562,2001.48,NET,Alder King,02367D
Gloucester City Council,23UE,Investment Property,RB500,Cctv Servicing & Maint,3016,call out 25/11/15 re CCTV,,412308,89,NET,Secom Plc,51471A
Gloucester City Council,23UE,Legal Services,RS200,Contracted Services,6970,One Legal costs,,412509,8724.8,NET,Tewkesbury Borough Council,43800C
Gloucester City Council,23UE,Nms Contract,HI102,Additional Non-Tender Items,6973,food waste caddys,,412352,7685.16,NET,Straight Plc,50537E
Gloucester City Council,23UE,Nms Contract,HI102,Additional Non-Tender Items,6973,waste collection date labels,,412354,215,NET,Eurolabel,10252Z
Gloucester City Council,23UE,Nms Contract,HI102,Contracted Services,6970,"E1-15544, Wood recycling",,393067,540.58,NET,Enterprise (Aol) Ltd,06695G
Gloucester City Council,23UE,Nms Contract,HI102,Contracted Services,6970,Pension Nov13,,412573,9605.09,NET,Enterprise (Aol) Ltd,06695G
Gloucester City Council,23UE,Nms Contract,HI102,Contracted Services,6970,Southern connector traffic mgmt 14/3/13,,412574,1430,NET,Enterprise (Aol) Ltd,06695G
Gloucester City Council,23UE,Nms Contract,HI102,Contracted Services,6970,sports bookings & wood recycling,,412568,2630.58,NET,Enterprise (Aol) Ltd,06695G
Gloucester City Council,23UE,Nms Contract,HI102,Contracted Services,6970,Wood Recycling,,402995,2601.5,NET,Enterprise (Aol) Ltd,06695G
Gloucester City Council,23UE,Registration Of Electors,RS400,Fees For Services Received,5350,Polling Station room hire May 2015,,411535,50,NET,Old Richian Sports & Social Club,04328V
Gloucester City Council,23UE,Registration Of Electors,RS400,Publications,5060,Schofields election law R26,,412563,185,NET,Thomson Reuters,43110M
Gloucester City Council,23UE,Rugby World Cup,LT450,Fees For Services Received,5350,RWC fanzone utilities,,412391,333.33,NET,Canal & River Trust,13779W
Gloucester City Council,23UE,The Arbor,HC501,Catering Provisions -Food,5110,food,,412007,767.45,NET,Bidvest Foodservice (3663),55585U
Gloucester City Council,23UE,The Arbor,HC501,Catering Provisions -Food,5110,food,,412031,196.12,NET,Bidvest Foodservice (3663),55585U
Gloucester City Council,23UE,The Arbor,HC501,Catering Provisions -Food,5110,food,,412032,266.62,NET,Bidvest Foodservice (3663),55585U
Gloucester City Council,23UE,The Arbor,HC501,Catering Provisions -Food,5110,food,,412236,187.43,NET,Janes Pantry,24500W
Gloucester City Council,23UE,The Arbor,HC501,Catering Provisions -Food,5110,food,,412366,118.96,NET,Janes Pantry,24500W
Gloucester City Council,23UE,The Arbor,HC501,Catering Provisions -Food,5110,food,,412576,64.56,NET,Janes Pantry,24500W
Gloucester City Council,23UE,The Arbor,HC501,Catering Provisions -Food,5110,FOOD,,411928,157.03,NET,Janes Pantry,24500W
Gloucester City Council,23UE,The Arbor,HC501,Cleaning Materials,3600,Disposal Units Servicing,,412129,34.56,NET,Minster Cleaning Services,02158R
Gloucester City Council,23UE,The Arbor,HC501,Maint Agreements - Buildings,3010,monthly machine warranty,,412585,61.58,NET,Caffeica Ltd,11923J
Gloucester City Council,23UE,Tic Theatre Ticket Sales,LT107,Materials For Sale,5080,XMAS CONCERT 2015 BY TEMPS DE NOEL,,412566,255,NET,Saint Cecilia Singers,57588T
Gloucester City Council,23UE,Tic Theatre Ticket Sales,LT107,Sale Of Goods And Services,9230,XMAS CONCERT 2015 BY TEMPS DE NOEL,,412566,-10.62,NET,Saint Cecilia Singers,57588T
Gloucester City Council,23UE,Utilities,PT502,Gas Supply,3100,UTILITIES TO DEC 2015,,412478,17890.5,NET,West Mercia Energy,11669Z
Gloucester City Council,23UE,Vehicles,RS140,Fuel,4012,vehicle fuel,,412397,58.57,NET,Allstar Business Solutions Ltd (Arval),06594A
Gloucester City Council,23UE,Vehicles,RS140,Fuel,4012,VEHICLE FUEL,,412549,136.1,NET,Allstar Business Solutions Ltd (Arval),06594A
,,,,,,,,Sum:,8449517.9,,,
